Workbook

Sheet UserManual
C5: User Manual
C7: This tool has been designed to quantify the cost-benefits of installing a shoreside connection point for you vessel(s). It works on basic assumptions which are the default international standards (EMEP/EEA Guidebook, 2016). Before this tool can be used there are a number of user inputs that need to be defined which are essential to the calculations. These are defined below;
D11: Fuel type consumed: | E11: The fuel which your vessel burns whilst idling at its jetty. Choices are restricted to marine diesel oil, marine gas oil, and low-sulphur heavy fuel oil. These restrictions are in place because the default international standards do not allow for more specific calculations. | P11: <please select>
D12: Time spent idling at jetty: | E12: The amount of time per day that each vessel is idling at the jetty where the shoreside power connection(s) are to be installed that could practically be replaced by power consumption from the electricity grid instead. Note, this should not include time spent idling which is necessary for the practical operation of your vessel(s). We assume that vessels are not operating for three weeks of the year. | Q12: hrs | S12: mins
D13: Days of the week operational | E13: The amount of days each week in which the vessel(s) operate. For example, if your vessels only operate Monday - Friday, then this is five days.
D14: Number of vessels | E14: The number of vessels you would connect to the shoreside power connection at any one time. This can be an average so does not need to be a whole number. If for example, you have 3 vessels, and some of the time 2 are plugged, whilst at other points, only 1 is plugged in, then you can put 1.5.
D15: Maximum engine power (kW): | E15: The maximum continuous power rating of your vessel engine(s) that would typically be operational whilst at berth. If you have more than one engine which are switched on during idling then this is the sum of all of them, not the average. This is per vessel | Q15: kW
D16: Engine type: | E16: The type of engine(s) which is most relevant to the engine(s) used whilst at berth. As with fuel type, this is restricted to those in the drop-down list due to limitations on the data availability. | P16: <please select>
D17: Loading factor: | E17: The proportion of your maximum continuous power rating that is accessed whilst at berth. If known, enter a value between 0-100%. Otherwise a default value of 20% is used. | P17: Use model defaults | R17: 0.8
D18: Specific Fuel Consumption Rate: | E18: The amount of fuel consumed per unit energy of the engine output (not the fuel) in g/kWh. As with loading factor, the user can manually enter this if known, otherwise default values coded into the model are used which are dependent upon the fuel type and engine type selected. | P18: Use model defaults | R18: 275
D19: Fuel price: | E19: This is simply the amount that you pay for your fuel at the moment. The model can interpret prices in £ per litre, tonne, or kg. Coded within the model is a projection of how fuel price is expected to vary over the coming years, scaled from BEIS UEP projections (BEIS, 2018). As a result, payback period is calculated under various scenarios (with planned actions, low fuel-cost futures, or high fuel-cost futures). | Q19: per | R19: tonne

Sheet Model1Inputs (hidden)
A1: Installation Cost (total) - £ | B1: Maintenance costs annually - £ | C1: Electricity cost - £/kWh
A2: 125000 | B2: 10000 | C2: 0.08

Sheet Model2Inputs (hidden)
A1: Payback period (yrs) | B1: Electricity costs | C1: Maintenance%
A2: 4 | B2: 0.1 | C2: 0.02

Sheet Results (hidden)
C5: Fuel consumed idling per year: | F5: =(n_HrsPerDay + n_Minsperday/60)*n_Enginepower*n_VesselNumbers* IF(n_LoadChoice="Enter manually",n_LoadManual,0.2) *IF(n_SFCChoice="Enter manually",n_SFCManual,INDEX(a_SFC,MATCH(n_Enginetype,a_EngineType,0),MATCH(n_Fuel,Lists!$G$3:$J$3,0))) *(365.25*(n_DaysperWeek/7)-20)*10^-6 ->  | G5: tonnes per year | K5: =INDEX(PriceVolatility!$B$31:$AK$31, MATCH(TRUE, PriceVolatility!$B$65:$AK$65, 0)) ->  | L5: =INDEX(PriceVolatility!$B$31:$AK$31, MATCH(TRUE, PriceVolatility!$B$66:$AK$66, 0)) -> 
C6: Cost of fuel (this year): | E6: £ | F6: =$F$5*n_FuelPrice*INDEX(Lists!$L$4:$L$6, MATCH(n_FuelUnit, a_FuelUnits, 0)) ->  | G6: per year | J6: PAYBACK PERIOD: | K6: =IFERROR(IF(K5=L5, K5-n_Timestamp&" years", MIN($K$5:$L$5)-n_Timestamp&"-"&MAX($K$5:$L$5)-n_Timestamp&" years"), "beyond 2035") -> beyond 2035
C8: Emissions mitigated: | J8: Fuel price scenario: | K8: Existing policies
C9: NOx | D9: =VLOOKUP(n_Enginetype&"_"&n_Fuel, a_EF, 4, FALSE)*n_AnnualFC*10^-3 ->  | E9: tonnes/yr | J9: Electricity price scenario: | K9: Existing policies
C10: PM10 | D10: =VLOOKUP(n_Enginetype&"_"&n_Fuel, a_EF, 5, FALSE)*n_AnnualFC ->  | E10: kg/yr
C11: PM2.5 | D11: =VLOOKUP(n_Enginetype&"_"&n_Fuel, a_EF, 6, FALSE)*n_AnnualFC ->  | E11: kg/yr
C12: SO2 | D12: =INDEX(a_SO2EF, MATCH(n_Fuel, a_FuelType, 0))*n_AnnualFC ->  | E12: tonnes/yr
D14: =n_Timestamp -> 2019 | E14: =D14+1 -> 2020 | F14: =E14+1 -> 2021 | G14: 2022 | H14: 2023 | I14: 2024 | J14: 2025 | K14: 2026 | L14: 2027 | M14: 2028 | N14: 2029
C15: CO2e savings (tonnes/yr) | D15: =INDEX(r_CO2_savings, MATCH(D$14, PriceVolatility!$B$80:$AK$80, 0)) -> n/a | E15: =INDEX(r_CO2_savings, MATCH(E$14, PriceVolatility!$B$80:$AK$80, 0)) -> n/a | F15: =INDEX(r_CO2_savings, MATCH(F$14, PriceVolatility!$B$80:$AK$80, 0)) -> n/a | G15: =INDEX(r_CO2_savings, MATCH(G$14, PriceVolatility!$B$80:$AK$80, 0)) -> n/a | H15: =INDEX(r_CO2_savings, MATCH(H$14, PriceVolatility!$B$80:$AK$80, 0)) -> n/a | I15: =INDEX(r_CO2_savings, MATCH(I$14, PriceVolatility!$B$80:$AK$80, 0)) -> n/a | J15: =INDEX(r_CO2_savings, MATCH(J$14, PriceVolatility!$B$80:$AK$80, 0)) -> n/a | K15: =INDEX(r_CO2_savings, MATCH(K$14, PriceVolatility!$B$80:$AK$80, 0)) -> n/a | L15: =INDEX(r_CO2_savings, MATCH(L$14, PriceVolatility!$B$80:$AK$80, 0)) -> n/a | M15: =INDEX(r_CO2_savings, MATCH(M$14, PriceVolatility!$B$80:$AK$80, 0)) -> n/a | N15: =INDEX(r_CO2_savings, MATCH(N$14, PriceVolatility!$B$80:$AK$80, 0)) -> n/a
D46: =n_Timestamp -> 2019 | E46: =D46+1 -> 2020 | F46: =E46+1 -> 2021 | G46: 2022 | H46: 2023 | I46: 2024 | J46: 2025 | K46: 2026 | L46: 2027 | M46: 2028 | N46: 2029
C47: Shoreside costs: | D47: =INDEX(PriceVolatility!$R$55:$AK$55, MATCH(Results!D$46, PriceVolatility!$R$54:$AK$54, 0)) -> 135000 | E47: =INDEX(PriceVolatility!$R$55:$AK$55, MATCH(Results!E$46, PriceVolatility!$R$54:$AK$54, 0)) -> 145000 | F47: =INDEX(PriceVolatility!$R$55:$AK$55, MATCH(Results!F$46, PriceVolatility!$R$54:$AK$54, 0)) -> 155000 | G47: =INDEX(PriceVolatility!$R$55:$AK$55, MATCH(Results!G$46, PriceVolatility!$R$54:$AK$54, 0)) -> 165000 | H47: =INDEX(PriceVolatility!$R$55:$AK$55, MATCH(Results!H$46, PriceVolatility!$R$54:$AK$54, 0)) -> 175000 | I47: =INDEX(PriceVolatility!$R$55:$AK$55, MATCH(Results!I$46, PriceVolatility!$R$54:$AK$54, 0)) -> 185000 | J47: =INDEX(PriceVolatility!$R$55:$AK$55, MATCH(Results!J$46, PriceVolatility!$R$54:$AK$54, 0)) -> 195000 | K47: =INDEX(PriceVolatility!$R$55:$AK$55, MATCH(Results!K$46, PriceVolatility!$R$54:$AK$54, 0)) -> 205000 | L47: =INDEX(PriceVolatility!$R$55:$AK$55, MATCH(Results!L$46, PriceVolatility!$R$54:$AK$54, 0)) -> 215000 | M47: =INDEX(PriceVolatility!$R$55:$AK$55, MATCH(Results!M$46, PriceVolatility!$R$54:$AK$54, 0)) -> 225000 | N47: =INDEX(PriceVolatility!$R$55:$AK$55, MATCH(Results!N$46, PriceVolatility!$R$54:$AK$54, 0)) -> 235000
C48: Fuel costs: | D48: =INDEX(PriceVolatility!$R$24:$AK$24, MATCH(Results!D$46, PriceVolatility!$R$54:$AK$54, 0)) ->  | E48: =INDEX(PriceVolatility!$R$24:$AK$24, MATCH(Results!E$46, PriceVolatility!$R$54:$AK$54, 0)) ->  | F48: =INDEX(PriceVolatility!$R$24:$AK$24, MATCH(Results!F$46, PriceVolatility!$R$54:$AK$54, 0)) ->  | G48: =INDEX(PriceVolatility!$R$24:$AK$24, MATCH(Results!G$46, PriceVolatility!$R$54:$AK$54, 0)) ->  | H48: =INDEX(PriceVolatility!$R$24:$AK$24, MATCH(Results!H$46, PriceVolatility!$R$54:$AK$54, 0)) ->  | I48: =INDEX(PriceVolatility!$R$24:$AK$24, MATCH(Results!I$46, PriceVolatility!$R$54:$AK$54, 0)) ->  | J48: =INDEX(PriceVolatility!$R$24:$AK$24, MATCH(Results!J$46, PriceVolatility!$R$54:$AK$54, 0)) ->  | K48: =INDEX(PriceVolatility!$R$24:$AK$24, MATCH(Results!K$46, PriceVolatility!$R$54:$AK$54, 0)) ->  | L48: =INDEX(PriceVolatility!$R$24:$AK$24, MATCH(Results!L$46, PriceVolatility!$R$54:$AK$54, 0)) ->  | M48: =INDEX(PriceVolatility!$R$24:$AK$24, MATCH(Results!M$46, PriceVolatility!$R$54:$AK$54, 0)) ->  | N48: =INDEX(PriceVolatility!$R$24:$AK$24, MATCH(Results!N$46, PriceVolatility!$R$54:$AK$54, 0)) -> 

Sheet Results_2 (hidden)
C5: Fuel consumed idling per year: | F5: =(n_HrsPerDay + n_Minsperday/60)*n_Enginepower*n_VesselNumbers* IF(n_LoadChoice="Enter manually",n_LoadManual,0.2) *IF(n_SFCChoice="Enter manually",n_SFCManual,INDEX(a_SFC,MATCH(n_Enginetype,a_EngineType,0),MATCH(n_Fuel,Lists!$G$3:$J$3,0))) *(365.25*(n_DaysperWeek/7)-20)*10^-6 ->  | G5: tonnes per year | K5: =INDEX(PriceVolatility!$B$31:$AK$31, MATCH(TRUE, PriceVolatility!$B$65:$AK$65, 0)) ->  | L5: =INDEX(PriceVolatility!$B$31:$AK$31, MATCH(TRUE, PriceVolatility!$B$66:$AK$66, 0)) -> 
C6: Cost of fuel (this year): | E6: £ | F6: =$F$5*n_FuelPrice*INDEX(Lists!$L$4:$L$6, MATCH(n_FuelUnit, a_FuelUnits, 0)) ->  | G6: per year | J6: PAYBACK PERIOD: | K6: =Results_2!n_PaybackPeriod&" years" -> 4 years
C8: Emissions mitigated: | J8: Fuel price scenario: | K8: Existing policies
C9: NOx | D9: =VLOOKUP(n_Enginetype&"_"&n_Fuel, a_EF, 4, FALSE)*n_AnnualFC*10^-3 ->  | E9: tonnes/yr | J9: Electricity price scenario: | K9: Existing policies
C10: PM10 | D10: =VLOOKUP(n_Enginetype&"_"&n_Fuel, a_EF, 5, FALSE)*n_AnnualFC ->  | E10: kg/yr
C11: PM2.5 | D11: =VLOOKUP(n_Enginetype&"_"&n_Fuel, a_EF, 6, FALSE)*n_AnnualFC ->  | E11: kg/yr
C12: SO2 | D12: =INDEX(a_SO2EF, MATCH(n_Fuel, a_FuelType, 0))*n_AnnualFC ->  | E12: tonnes/yr
D14: =n_Timestamp -> 2019 | E14: =D14+1 -> 2020 | F14: =E14+1 -> 2021 | G14: 2022 | H14: 2023 | I14: 2024 | J14: 2025 | K14: 2026 | L14: 2027 | M14: 2028 | N14: 2029 | O14: 2030
C15: CO2e savings (tonnes/yr) | D15: =INDEX(PriceVolatility_2!r_CO2_savings_2, MATCH(D$14, PriceVolatility!$B$80:$AK$80, 0)) -> n/a | E15: =INDEX(PriceVolatility_2!r_CO2_savings_2, MATCH(E$14, PriceVolatility!$B$80:$AK$80, 0)) -> n/a | F15: =INDEX(PriceVolatility_2!r_CO2_savings_2, MATCH(F$14, PriceVolatility!$B$80:$AK$80, 0)) -> n/a | G15: =INDEX(PriceVolatility_2!r_CO2_savings_2, MATCH(G$14, PriceVolatility!$B$80:$AK$80, 0)) -> n/a | H15: =INDEX(PriceVolatility_2!r_CO2_savings_2, MATCH(H$14, PriceVolatility!$B$80:$AK$80, 0)) -> n/a | I15: =INDEX(PriceVolatility_2!r_CO2_savings_2, MATCH(I$14, PriceVolatility!$B$80:$AK$80, 0)) -> n/a | J15: =INDEX(PriceVolatility_2!r_CO2_savings_2, MATCH(J$14, PriceVolatility!$B$80:$AK$80, 0)) -> n/a | K15: =INDEX(PriceVolatility_2!r_CO2_savings_2, MATCH(K$14, PriceVolatility!$B$80:$AK$80, 0)) -> n/a | L15: =INDEX(PriceVolatility_2!r_CO2_savings_2, MATCH(L$14, PriceVolatility!$B$80:$AK$80, 0)) -> n/a | M15: =INDEX(PriceVolatility_2!r_CO2_savings_2, MATCH(M$14, PriceVolatility!$B$80:$AK$80, 0)) -> n/a | N15: =INDEX(PriceVolatility_2!r_CO2_savings_2, MATCH(N$14, PriceVolatility!$B$80:$AK$80, 0)) -> n/a | O15: =INDEX(PriceVolatility_2!r_CO2_savings_2, MATCH(O$14, PriceVolatility!$B$80:$AK$80, 0)) -> n/a
D46: =n_Timestamp -> 2019 | E46: =D46+1 -> 2020 | F46: =E46+1 -> 2021 | G46: 2022 | H46: 2023 | I46: 2024 | J46: 2025 | K46: 2026 | L46: 2027 | M46: 2028 | N46: 2029
C47: Shoreside costs: | D47: =INDEX(PriceVolatility_2!$R$59:$AK$59, MATCH(Results_2!D$46, PriceVolatility_2!$R$49:$AK$49, 0)) ->  | E47: =INDEX(PriceVolatility_2!$R$59:$AK$59, MATCH(Results_2!E$46, PriceVolatility_2!$R$49:$AK$49, 0)) ->  | F47: =INDEX(PriceVolatility_2!$R$59:$AK$59, MATCH(Results_2!F$46, PriceVolatility_2!$R$49:$AK$49, 0)) ->  | G47: =INDEX(PriceVolatility_2!$R$59:$AK$59, MATCH(Results_2!G$46, PriceVolatility_2!$R$49:$AK$49, 0)) ->  | H47: =INDEX(PriceVolatility_2!$R$59:$AK$59, MATCH(Results_2!H$46, PriceVolatility_2!$R$49:$AK$49, 0)) ->  | I47: =INDEX(PriceVolatility_2!$R$59:$AK$59, MATCH(Results_2!I$46, PriceVolatility_2!$R$49:$AK$49, 0)) ->  | J47: =INDEX(PriceVolatility_2!$R$59:$AK$59, MATCH(Results_2!J$46, PriceVolatility_2!$R$49:$AK$49, 0)) ->  | K47: =INDEX(PriceVolatility_2!$R$59:$AK$59, MATCH(Results_2!K$46, PriceVolatility_2!$R$49:$AK$49, 0)) ->  | L47: =INDEX(PriceVolatility_2!$R$59:$AK$59, MATCH(Results_2!L$46, PriceVolatility_2!$R$49:$AK$49, 0)) ->  | M47: =INDEX(PriceVolatility_2!$R$59:$AK$59, MATCH(Results_2!M$46, PriceVolatility_2!$R$49:$AK$49, 0)) ->  | N47: =INDEX(PriceVolatility_2!$R$59:$AK$59, MATCH(Results_2!N$46, PriceVolatility_2!$R$49:$AK$49, 0)) -> 
C48: Fuel costs: | D48: =INDEX(PriceVolatility_2!$R$24:$AK$24, MATCH(Results_2!D$46, PriceVolatility_2!$R$23:$AK$23, 0)) ->  | E48: =INDEX(PriceVolatility_2!$R$24:$AK$24, MATCH(Results_2!E$46, PriceVolatility_2!$R$23:$AK$23, 0)) ->  | F48: =INDEX(PriceVolatility_2!$R$24:$AK$24, MATCH(Results_2!F$46, PriceVolatility_2!$R$23:$AK$23, 0)) ->  | G48: =INDEX(PriceVolatility_2!$R$24:$AK$24, MATCH(Results_2!G$46, PriceVolatility_2!$R$23:$AK$23, 0)) ->  | H48: =INDEX(PriceVolatility_2!$R$24:$AK$24, MATCH(Results_2!H$46, PriceVolatility_2!$R$23:$AK$23, 0)) ->  | I48: =INDEX(PriceVolatility_2!$R$24:$AK$24, MATCH(Results_2!I$46, PriceVolatility_2!$R$23:$AK$23, 0)) ->  | J48: =INDEX(PriceVolatility_2!$R$24:$AK$24, MATCH(Results_2!J$46, PriceVolatility_2!$R$23:$AK$23, 0)) ->  | K48: =INDEX(PriceVolatility_2!$R$24:$AK$24, MATCH(Results_2!K$46, PriceVolatility_2!$R$23:$AK$23, 0)) ->  | L48: =INDEX(PriceVolatility_2!$R$24:$AK$24, MATCH(Results_2!L$46, PriceVolatility_2!$R$23:$AK$23, 0)) ->  | M48: =INDEX(PriceVolatility_2!$R$24:$AK$24, MATCH(Results_2!M$46, PriceVolatility_2!$R$23:$AK$23, 0)) ->  | N48: =INDEX(PriceVolatility_2!$R$24:$AK$24, MATCH(Results_2!N$46, PriceVolatility_2!$R$23:$AK$23, 0)) -> 

Sheet PriceVolatility (hidden)
A1: Processing explanations in this column
A2: |
A3: | | B3: Timestamp | R3: =YEAR(NOW()) -> 2019 | T3: Fuel price | U3: =n_FuelPrice*INDEX(Lists!$L$4:$L$6, MATCH(n_FuelUnit, a_FuelUnits, 0)) -> 0 | V3: per tonne | W3: Elec. Price | X3: =IF(AND(ISNUMBER(n_ElecPrice),n_ElecPrice>0),n_ElecPrice,INDEX($R$36:$AK$36,MATCH(n_Timestamp,$R$31:$AK$31,0))/100) -> 0.08 | Y3: per kWh
A4: V | R4: Source: BEIS UEP projections
C5: 2001 | D5: =C5+1 -> 2002 | E5: =D5+1 -> 2003 | F5: 2004 | G5: 2005 | H5: 2006 | I5: 2007 | J5: 2008 | K5: 2009 | L5: 2010 | M5: 2011 | N5: 2012 | O5: 2013 | P5: 2014 | Q5: 2015 | R5: 2016 | S5: 2017 | T5: 2018 | U5: 2019 | V5: 2020 | W5: 2021 | X5: 2022 | Y5: 2023 | Z5: 2024 | AA5: 2025 | AB5: 2026 | AC5: 2027 | AD5: 2028 | AE5: 2029 | AF5: 2030 | AG5: 2031 | AH5: 2032 | AI5: 2033 | AJ5: 2034 | AK5: 2035
A6: 1. BEIS UEP projected cost of fuels (£ per tonne) | B6: Existing policies | C6: 2.16504744 | D6: 2.030180524 | E6: 2.267445459 | F6: 2.49506618 | G6: 3.120438265 | H6: 3.681901525 | I6: 3.661115581 | J6: 5.281030224 | K6: 4.259730652 | L6: 5.124885719 | M6: 6.24829895 | N6: 6.404386427 | O6: 6.164960499 | P6: 5.50673081 | Q6: 4.136381704 | R6: 2.92547714 | S6: 3.23955089 | T6: 3.381529619 | U6: 3.487544987 | V6: 3.637553917 | W6: 3.784992656 | X6: 3.884566457 | Y6: 4.028043114 | Z6: 4.170863713 | AA6: 4.313736089 | AB6: 4.411576012 | AC6: 4.554553007 | AD6: 4.69758285 | AE6: 4.795581316 | AF6: 4.938717941 | AG6: 4.94665475 | AH6: 4.954645868 | AI6: 4.962691666 | AJ6: 4.970792518 | AK6: 4.978948801
B7: Low price scenario | C7: 2.16504744 | D7: 2.030180524 | E7: 2.267445459 | F7: 2.49506618 | G7: 3.120438265 | H7: 3.681901525 | I7: 3.661115581 | J7: 5.281030224 | K7: 4.259730652 | L7: 5.124885719 | M7: 6.24829895 | N7: 6.404386427 | O7: 6.164960499 | P7: 5.50673081 | Q7: 4.136381704 | R7: 2.564800461 | S7: 2.247690023 | T7: 2.344584167 | U7: 2.49568412 | V7: 2.600608465 | W7: 2.748047204 | X7: 2.847621005 | Y7: 2.991097662 | Z7: 3.088833677 | AA7: 3.231706053 | AB7: 3.329545975 | AC7: 3.47252297 | AD7: 3.570468228 | AE7: 3.71355128 | AF7: 3.811603319 | AG7: 3.819540128 | AH7: 3.827531246 | AI7: 3.835577044 | AJ7: 3.843677896 | AK7: 3.85183418
B8: High price scenario | C8: 2.16504744 | D8: 2.030180524 | E8: 2.267445459 | F8: 2.49506618 | G8: 3.120438265 | H8: 3.681901525 | I8: 3.661115581 | J8: 5.281030224 | K8: 4.259730652 | L8: 5.124885719 | M8: 6.24829895 | N8: 6.404386427 | O8: 6.164960499 | P8: 5.50673081 | Q8: 4.136381704 | R8: 3.556661328 | S8: 4.005988833 | T8: 4.238136732 | U8: 4.434321269 | V8: 4.629414784 | W8: 4.867022693 | X8: 5.056765664 | Y8: 5.290411491 | Z8: 5.478316675 | AA8: 5.71135822 | AB8: 5.899367313 | AC8: 6.132513478 | AD8: 6.320627905 | AE8: 6.553880126 | AF8: 6.742101335 | AG8: 6.750038145 | AH8: 6.758029262 | AI8: 6.76607506 | AJ8: 6.774175913 | AK8: 6.782332196
A10: 2. Scaled time-series to account for which year we are in. So if timestamp year is 2019, cost projections are scaled to that year. Trends are used in the UEP in effect (£/t) | B10: Existing policies | R10: =R6 -> 2.92547714 | S10: =S6 -> 3.23955089 | T10: 3.381529619 | U10: 3.487544987 | V10: 3.637553917 | W10: 3.784992656 | X10: 3.884566457 | Y10: 4.028043114 | Z10: 4.170863713 | AA10: 4.313736089 | AB10: 4.411576012 | AC10: 4.554553007 | AD10: 4.69758285 | AE10: 4.795581316 | AF10: 4.938717941 | AG10: 4.94665475 | AH10: 4.954645868 | AI10: 4.962691666 | AJ10: 4.970792518 | AK10: 4.978948801
B11: Low price scenario | R11: =IF(R$5=n_Timestamp,R$10,R7/INDEX($R7:$AK7,MATCH(n_Timestamp,$R$5:$AK$5,0))*INDEX($R$10:$AK$10,MATCH(n_Timestamp,$R$5:$AK$5,0))) -> 3.584130267 | S11: 3.140990484 | T11: 3.276393312 | U11: 3.487544987 | V11: 3.634169461 | W11: 3.840204846 | X11: 3.979352308 | Y11: 4.179850957 | Z11: 4.31643024 | AA11: 4.516084449 | AB11: 4.652808936 | AC11: 4.852609343 | AD11: 4.989481029 | AE11: 5.189429642 | AF11: 5.326450548 | AG11: 5.337541687 | AH11: 5.348708718 | AI11: 5.359952161 | AJ11: 5.371272538 | AK11: 5.382670377
B12: High price scenario | R12: =IF(R$5=n_Timestamp,R$10,R8/INDEX($R8:$AK8,MATCH(n_Timestamp,$R$5:$AK$5,0))*INDEX($R$10:$AK$10,MATCH(n_Timestamp,$R$5:$AK$5,0))) -> 2.797275081 | S12: 3.150666229 | T12: 3.333248003 | U12: 3.487544987 | V12: 3.640983894 | W12: 3.827859906 | X12: 3.977090669 | Y12: 4.160850546 | Z12: 4.30863591 | AA12: 4.491920527 | AB12: 4.639787613 | AC12: 4.823154512 | AD12: 4.971104444 | AE12: 5.154554754 | AF12: 5.302588668 | AG12: 5.308830882 | AH12: 5.315115808 | AI12: 5.32144374 | AJ12: 5.327814971 | AK12: 5.334229798
A14: 3. Scaled against listed fuel price provided by the operators on the UserManual page (£/t) | B14: Existing policies | R14: =IF(n_Timestamp=R$5,1,R10/INDEX($R10:$AK10,MATCH(n_Timestamp,$R$5:$AK$5,0)))*$U$3 -> 0 | S14: 0 | T14: 0 | U14: 0 | V14: 0 | W14: 0 | X14: 0 | Y14: 0 | Z14: 0 | AA14: 0 | AB14: 0 | AC14: 0 | AD14: 0 | AE14: 0 | AF14: 0 | AG14: 0 | AH14: 0 | AI14: 0 | AJ14: 0 | AK14: 0
B15: Low price scenario | R15: =IF(n_Timestamp=R$5,1,R11/INDEX($R11:$AK11,MATCH(n_Timestamp,$R$5:$AK$5,0)))*$U$3 -> 0 | S15: 0 | T15: 0 | U15: 0 | V15: 0 | W15: 0 | X15: 0 | Y15: 0 | Z15: 0 | AA15: 0 | AB15: 0 | AC15: 0 | AD15: 0 | AE15: 0 | AF15: 0 | AG15: 0 | AH15: 0 | AI15: 0 | AJ15: 0 | AK15: 0
B16: High price scenario | R16: =IF(n_Timestamp=R$5,1,R12/INDEX($R12:$AK12,MATCH(n_Timestamp,$R$5:$AK$5,0)))*$U$3 -> 0 | S16: 0 | T16: 0 | U16: 0 | V16: 0 | W16: 0 | X16: 0 | Y16: 0 | Z16: 0 | AA16: 0 | AB16: 0 | AC16: 0 | AD16: 0 | AE16: 0 | AF16: 0 | AG16: 0 | AH16: 0 | AI16: 0 | AJ16: 0 | AK16: 0
B18: Annual costs | R18: =R5 -> 2016 | S18: =R18+1 -> 2017 | T18: 2018 | U18: 2019 | V18: 2020 | W18: 2021 | X18: 2022 | Y18: 2023 | Z18: 2024 | AA18: 2025 | AB18: 2026 | AC18: 2027 | AD18: 2028 | AE18: 2029 | AF18: 2030 | AG18: 2031 | AH18: 2032 | AI18: 2033 | AJ18: 2034 | AK18: 2035
A19: 4. Using the calculated value of fuel consumption, overall fuel cost per annum are computed. The value of fuel consumption assumes that there are 20 days per year where a vessel isn't operational, and is only operational for the hours listed in the UserManual by the operator | B19: Existing policies | R19: =n_AnnualFC*R14 ->  | U19: =n_AnnualFC*U14 -> 
B20: Low price scenario | R20: =n_AnnualFC*R15 -> 
B21: High price scenario | R21: =n_AnnualFC*R16 -> 
B23: Cumulative costs | R23: 2016 | S23: 2017 | T23: 2018 | U23: 2019 | V23: 2020 | W23: 2021 | X23: 2022 | Y23: 2023 | Z23: 2024 | AA23: 2025 | AB23: 2026 | AC23: 2027 | AD23: 2028 | AE23: 2029 | AF23: 2030 | AG23: 2031 | AH23: 2032 | AI23: 2033 | AJ23: 2034 | AK23: 2035
A24: 5. Cumulative costs, starting from the base year (current year) | B24: Existing policies | R24: =IF(R$18<n_Timestamp,"n/a",SUM(R19, Q24)) -> n/a | S24: n/a | T24: n/a
B25: Low price scenario | R25: =IF(R$18<n_Timestamp,"n/a",SUM(R20, Q25)) -> n/a | S25: n/a | T25: n/a
B26: High price scenario | R26: =IF(R$18<n_Timestamp,"n/a",SUM(R21, Q26)) -> n/a | S26: n/a | T26: n/a
A28: 6. Insert costs of installation from UserManual | B28: Installation costs: | R28: =n_InstallationCost -> 125000
A29: 7. Insert maintenance costs from UserManual (or 2.5% of installation costs) | B29: Maintenance costs per year: | R29: =IF(AND(ISNUMBER(n_MaintenanceCosts), n_MaintenanceCosts>0), n_MaintenanceCosts, $R$28*0.025) -> 10000
B31: Electricity costs: | R31: 2016 | S31: 2017 | T31: 2018 | U31: 2019 | V31: 2020 | W31: 2021 | X31: 2022 | Y31: 2023 | Z31: 2024 | AA31: 2025 | AB31: 2026 | AC31: 2027 | AD31: 2028 | AE31: 2029 | AF31: 2030 | AG31: 2031 | AH31: 2032 | AI31: 2033 | AJ31: 2034 | AK31: 2035
A32: 8. BEIS UEP electricity cost projections | B32: Existing policies | C32: 2.16504744 | D32: 2.030180524 | E32: 2.267445459 | F32: 2.49506618 | G32: 3.120438265 | H32: 3.681901525 | I32: 3.661115581 | J32: 5.281030224 | K32: 4.259730652 | L32: 5.124885719 | M32: 6.24829895 | N32: 6.404386427 | O32: 6.164960499 | P32: 5.50673081 | Q32: 4.136381704 | R32: 9.831444081 | S32: 10.23177363 | T32: 10.67839361 | U32: 11.36606407 | V32: 11.71875951 | W32: 12.0095202 | X32: 11.95833153 | Y32: 12.11726765 | Z32: 12.42848839 | AA32: 13.12158865 | AB32: 13.33996684 | AC32: 13.02659407 | AD32: 13.65294786 | AE32: 14.13205857 | AF32: 14.25493366 | AG32: 14.49500384 | AH32: 14.74626546 | AI32: 15.23898638 | AJ32: 15.46533925 | AK32: 15.83055562
B33: Low price scenario | C33: 2.16504744 | D33: 2.030180524 | E33: 2.267445459 | F33: 2.49506618 | G33: 3.120438265 | H33: 3.681901525 | I33: 3.661115581 | J33: 5.281030224 | K33: 4.259730652 | L33: 5.124885719 | M33: 6.24829895 | N33: 6.404386427 | O33: 6.164960499 | P33: 5.50673081 | Q33: 4.136381704 | R33: 9.831444081 | S33: 9.542628714 | T33: 10.00839967 | U33: 10.71674356 | V33: 11.05483273 | W33: 11.20002115 | X33: 11.11102313 | Y33: 11.07705326 | Z33: 11.32160973 | AA33: 11.89656932 | AB33: 11.95544844 | AC33: 11.39645804 | AD33: 11.43527968 | AE33: 11.41441923 | AF33: 11.54147901 | AG33: 11.69619153 | AH33: 11.46297347 | AI33: 11.5029685 | AJ33: 11.48721725 | AK33: 10.6721599
B34: High price scenario | C34: 2.16504744 | D34: 2.030180524 | E34: 2.267445459 | F34: 2.49506618 | G34: 3.120438265 | H34: 3.681901525 | I34: 3.661115581 | J34: 5.281030224 | K34: 4.259730652 | L34: 5.124885719 | M34: 6.24829895 | N34: 6.404386427 | O34: 6.164960499 | P34: 5.50673081 | Q34: 4.136381704 | R34: 9.831444081 | S34: 10.81373851 | T34: 11.62056329 | U34: 12.52488089 | V34: 13.01622392 | W34: 13.16262822 | X34: 13.09666205 | Y34: 13.21021841 | Z34: 13.33651098 | AA34: 14.01479088 | AB34: 14.05178442 | AC34: 13.62102284 | AD34: 13.27446655 | AE34: 13.31168405 | AF34: 13.79258452 | AG34: 13.85630038 | AH34: 13.12427 | AI34: 12.95562785 | AJ34: 12.91681109 | AK34: 12.06305064
A36: 9. Scaling of electricity prices to current year | B36: Existing policies | R36: =R32 -> 9.831444081 | S36: =S32 -> 10.23177363 | T36: 10.67839361 | U36: 11.36606407 | V36: 11.71875951 | W36: 12.0095202 | X36: 11.95833153 | Y36: 12.11726765 | Z36: 12.42848839 | AA36: 13.12158865 | AB36: 13.33996684 | AC36: 13.02659407 | AD36: 13.65294786 | AE36: 14.13205857 | AF36: 14.25493366 | AG36: 14.49500384 | AH36: 14.74626546 | AI36: 15.23898638 | AJ36: 15.46533925 | AK36: 15.83055562
B37: Low price scenario | R37: =IF(R$5=n_Timestamp,R$36,R33/INDEX($R33:$AK33,MATCH(n_Timestamp,$R$5:$AK$5,0))*INDEX($R$36:$AK$36,MATCH(n_Timestamp,$R$5:$AK$5,0))) -> 10.42712487 | S37: 10.12081037 | T37: 10.61480209 | U37: 11.36606407 | V37: 11.72463784 | W37: 11.87862313 | X37: 11.78423278 | Y37: 11.7482047 | Z37: 12.00757869 | AA37: 12.61737471 | AB37: 12.67982128 | AC37: 12.086962 | AD37: 12.12813582 | AE37: 12.10601145 | AF37: 12.24076971 | AG37: 12.40485615 | AH37: 12.15750756 | AI37: 12.19992587 | AJ37: 12.18322026 | AK37: 11.31877912
B38: High price scenario | R38: =IF(R$5=n_Timestamp,R$36,R34/INDEX($R34:$AK34,MATCH(n_Timestamp,$R$5:$AK$5,0))*INDEX($R$36:$AK$36,MATCH(n_Timestamp,$R$5:$AK$5,0))) -> 8.921827226 | S38: 9.813238613 | T38: 10.545415 | U38: 11.36606407 | V38: 11.81194746 | W38: 11.94480626 | X38: 11.88494336 | Y38: 11.98799335 | Z38: 12.10260118 | AA38: 12.71812582 | AB38: 12.75169668 | AC38: 12.36078966 | AD38: 12.04629718 | AE38: 12.08007127 | AF38: 12.51647826 | AG38: 12.57429905 | AH38: 11.90999699 | AI38: 11.75695781 | AJ38: 11.72173242 | AK38: 10.9469629
A40: 10. Scaled against listed electricity price provided by the operators on the UserManual page (£/kWh) | B40: Existing policies | R40: =IF(n_Timestamp=R$5,1,R36/INDEX($R36:$AK36,MATCH(n_Timestamp,$R$5:$AK$5,0)))*$X$3 -> 0.06919858289 | S40: 0.07201630095 | T40: 0.07515983403 | U40: 0.08 | V40: 0.08248244557 | W40: 0.08452896361 | X40: 0.08416867237 | Y40: 0.08528734367 | Z40: 0.0874778697 | AA40: 0.09235625332 | AB40: 0.09389330741 | AC40: 0.09168763432 | AD40: 0.09609622314 | AE40: 0.09946844207 | AF40: 0.1003332979 | AG40: 0.1020230311 | AH40: 0.103791535 | AI40: 0.1072595494 | AJ40: 0.1088527333 | AK40: 0.1114233073
B41: Low price scenario | R41: =IF(n_Timestamp=R$5,1,R37/INDEX($R37:$AK37,MATCH(n_Timestamp,$R$5:$AK$5,0)))*$X$3 -> 0.07339127994 | S41: 0.07123528645 | T41: 0.07471224532 | U41: 0.08 | V41: 0.0825238202 | W41: 0.08360764508 | X41: 0.08294327892 | Y41: 0.08268969545 | Z41: 0.08451529828 | AA41: 0.08880734531 | AB41: 0.08924687526 | AC41: 0.08507403747 | AD41: 0.08536383922 | AE41: 0.08520811693 | AF41: 0.08615661242 | AG41: 0.08731153427 | AH41: 0.08557057213 | AI41: 0.08586913322 | AJ41: 0.08575155085 | AK41: 0.07966718508
B42: High price scenario | R42: =IF(n_Timestamp=R$5,1,R38/INDEX($R38:$AK38,MATCH(n_Timestamp,$R$5:$AK$5,0)))*$X$3 -> 0.06279624802 | S42: 0.06907044377 | T42: 0.07422386459 | U42: 0.08 | V42: 0.08313834863 | W42: 0.08407347479 | X42: 0.08365213 | Y42: 0.08437744699 | Z42: 0.08518411376 | AA42: 0.08951648168 | AB42: 0.08975277002 | AC42: 0.08700137245 | AD42: 0.08478781825 | AE42: 0.08502553708 | AF42: 0.08809718603 | AG42: 0.08850415747 | AH42: 0.08382846988 | AI42: 0.08275130418 | AJ42: 0.08250337041 | AK42: 0.07705015799
R44: =R31 -> 2016 | S44: =R44+1 -> 2017 | T44: 2018 | U44: 2019 | V44: 2020 | W44: 2021 | X44: 2022 | Y44: 2023 | Z44: 2024 | AA44: 2025 | AB44: 2026 | AC44: 2027 | AD44: 2028 | AE44: 2029 | AF44: 2030 | AG44: 2031 | AH44: 2032 | AI44: 2033 | AJ44: 2034 | AK44: 2035
A45: 11. Annual costs of electricity - as with fuel pricing, assumes that they are closed 20 days a year. | B45: Existing policies | R45: =(n_HrsPerDay + n_Minsperday/60)*n_Enginepower*IF(n_LoadChoice="Enter manually", n_LoadManual, 0.2)*(365.25*(n_DaysperWeek/7)-20)*R40 -> 0 | S45: 0 | T45: 0 | U45: 0 | V45: 0 | W45: 0 | X45: 0 | Y45: 0 | Z45: 0 | AA45: 0 | AB45: 0 | AC45: 0 | AD45: 0 | AE45: 0 | AF45: 0 | AG45: 0 | AH45: 0 | AI45: 0 | AJ45: 0 | AK45: 0
B46: Low price scenario | R46: =(n_HrsPerDay + n_Minsperday/60)*n_Enginepower*IF(n_LoadChoice="Enter manually", n_LoadManual, 0.2)*(365.25*(n_DaysperWeek/7)-20)*R41 -> 0 | S46: 0 | T46: 0 | U46: 0 | V46: 0 | W46: 0 | X46: 0 | Y46: 0 | Z46: 0 | AA46: 0 | AB46: 0 | AC46: 0 | AD46: 0 | AE46: 0 | AF46: 0 | AG46: 0 | AH46: 0 | AI46: 0 | AJ46: 0 | AK46: 0
B47: High price scenario | R47: =(n_HrsPerDay + n_Minsperday/60)*n_Enginepower*IF(n_LoadChoice="Enter manually", n_LoadManual, 0.2)*(365.25*(n_DaysperWeek/7)-20)*R42 -> 0 | S47: 0 | T47: 0 | U47: 0 | V47: 0 | W47: 0 | X47: 0 | Y47: 0 | Z47: 0 | AA47: 0 | AB47: 0 | AC47: 0 | AD47: 0 | AE47: 0 | AF47: 0 | AG47: 0 | AH47: 0 | AI47: 0 | AJ47: 0 | AK47: 0
A49: 12. Cumulative costs, starting from the base year (current year) | B49: Cumulative costs | R49: 2016 | S49: 2017 | T49: 2018 | U49: 2019 | V49: 2020 | W49: 2021 | X49: 2022 | Y49: 2023 | Z49: 2024 | AA49: 2025 | AB49: 2026 | AC49: 2027 | AD49: 2028 | AE49: 2029 | AF49: 2030 | AG49: 2031 | AH49: 2032 | AI49: 2033 | AJ49: 2034 | AK49: 2035
B50: Existing policies | R50: =IF(R$18<n_Timestamp,"n/a",SUM(R45, Q50)) -> n/a | S50: =IF(S$18<n_Timestamp,"n/a",SUM(S45, R50)) -> n/a | T50: n/a | U50: 0 | V50: 0 | W50: 0 | X50: 0 | Y50: 0 | Z50: 0 | AA50: 0 | AB50: 0 | AC50: 0 | AD50: 0 | AE50: 0 | AF50: 0 | AG50: 0 | AH50: 0 | AI50: 0 | AJ50: 0 | AK50: 0
B51: Low price scenario | R51: =IF(R$18<n_Timestamp,"n/a",SUM(R46, Q51)) -> n/a | S51: n/a | T51: n/a | U51: 0 | V51: 0 | W51: 0 | X51: 0 | Y51: 0 | Z51: 0 | AA51: 0 | AB51: 0 | AC51: 0 | AD51: 0 | AE51: 0 | AF51: 0 | AG51: 0 | AH51: 0 | AI51: 0 | AJ51: 0 | AK51: 0
B52: High price scenario | R52: =IF(R$18<n_Timestamp,"n/a",SUM(R47, Q52)) -> n/a | S52: n/a | T52: n/a | U52: 0 | V52: 0 | W52: 0 | X52: 0 | Y52: 0 | Z52: 0 | AA52: 0 | AB52: 0 | AC52: 0 | AD52: 0 | AE52: 0 | AF52: 0 | AG52: 0 | AH52: 0 | AI52: 0 | AJ52: 0 | AK52: 0
B54: Total costs NEW | R54: 2016 | S54: 2017 | T54: 2018 | U54: 2019 | V54: 2020 | W54: 2021 | X54: 2022 | Y54: 2023 | Z54: 2024 | AA54: 2025 | AB54: 2026 | AC54: 2027 | AD54: 2028 | AE54: 2029 | AF54: 2030 | AG54: 2031 | AH54: 2032 | AI54: 2033 | AJ54: 2034 | AK54: 2035
A55: 13. Costs of installed shore-power | B55: Existing policies | R55: =SUM(R50, IF(n_Timestamp<=R$54, $R$28, 0), IF(n_Timestamp<=R$54, $R$29*(R$54-n_Timestamp+1))) -> 0 | S55: 0 | T55: 0 | U55: 135000 | V55: 145000 | W55: 155000 | X55: 165000 | Y55: 175000 | Z55: 185000 | AA55: 195000 | AB55: 205000 | AC55: 215000 | AD55: 225000 | AE55: 235000 | AF55: 245000 | AG55: 255000 | AH55: 265000 | AI55: 275000 | AJ55: 285000 | AK55: 295000
B56: Low price scenario | R56: =SUM(R51, IF(n_Timestamp<=R$54, $R$28, 0), IF(n_Timestamp<=R$54, $R$29*(R$54-n_Timestamp+1))) -> 0 | S56: 0 | T56: 0 | U56: 135000 | V56: 145000 | W56: 155000 | X56: 165000 | Y56: 175000 | Z56: 185000 | AA56: 195000 | AB56: 205000 | AC56: 215000 | AD56: 225000 | AE56: 235000 | AF56: 245000 | AG56: 255000 | AH56: 265000 | AI56: 275000 | AJ56: 285000 | AK56: 295000
B57: High price scenario | R57: =SUM(R52, IF(n_Timestamp<=R$54, $R$28, 0), IF(n_Timestamp<=R$54, $R$29*(R$54-n_Timestamp+1))) -> 0 | S57: 0 | T57: 0 | U57: 135000 | V57: 145000 | W57: 155000 | X57: 165000 | Y57: 175000 | Z57: 185000 | AA57: 195000 | AB57: 205000 | AC57: 215000 | AD57: 225000 | AE57: 235000 | AF57: 245000 | AG57: 255000 | AH57: 265000 | AI57: 275000 | AJ57: 285000 | AK57: 295000
B59: Payback | R59: 2016 | S59: 2017 | T59: 2018 | U59: 2019 | V59: 2020 | W59: 2021 | X59: 2022 | Y59: 2023 | Z59: 2024 | AA59: 2025 | AB59: 2026 | AC59: 2027 | AD59: 2028 | AE59: 2029 | AF59: 2030 | AG59: 2031 | AH59: 2032 | AI59: 2033 | AJ59: 2034 | AK59: 2035
A60: 14. Calculation of payback period | B60: Existing policies | R60: =IF(R$59<n_Timestamp, 0, SUM(R55,-R24)) -> 0 | S60: 0 | T60: 0 | U60: =IF(U$59<n_Timestamp, 0, SUM(U55,-U24)) -> 
B61: Extreme payback1 (high fuel, low electricity) | R61: =IF(R$59<n_Timestamp, 0, SUM(R56,-R26)) -> 0 | S61: 0 | T61: 0
B62: Extreme payback2 (high electricity price, low fuel price) | R62: =IF(R$59<n_Timestamp, 0, SUM(R57,-R25)) -> 0 | S62: 0 | T62: =IF(T$59<n_Timestamp, 0, SUM(T57,-T25)) -> 0 | V62: =IF(V$59<n_Timestamp, 0, SUM(V57,-V25)) -> 
B64: Payback year1 | R64: =AND(Q60>=0, R60<0) -> FALSE | S64: =AND(R60>=0, S60<0) -> FALSE | T64: FALSE
B65: Extreme payback1 (high fuel, low electricity) | R65: =AND(Q61>=0, R61<0) -> FALSE | S65: FALSE | T65: FALSE
B66: Payback year3 | R66: =AND(Q62>=0, R62<0) -> FALSE | S66: FALSE | T66: FALSE
B68: Carbon emissions from electricity production
B69: (£/t CO2) | R69: <- carbon price from ETS - not price of electricity but will be related
B70: Existing policies | R70: 22.2 | S70: 22 | T70: 21.7 | U70: 21.5 | V70: 21.9 | W70: 22.1 | X70: 22.4 | Y70: 22.6 | Z70: 22.8 | AA70: 23.1 | AB70: 23.6 | AC70: 32.2 | AD70: 38.1 | AE70: 42.4 | AF70: 49 | AG70: 59.4 | AH70: 69.9 | AI70: 80.3 | AJ70: 90.7 | AK70: 101.1
B71: Low price scenario | R71: 22.2 | S71: 22 | T71: 21.7 | U71: 21.5 | V71: 21.9 | W71: 22.1 | X71: 22.4 | Y71: 22.6 | Z71: 22.8 | AA71: 23.1 | AB71: 23.6 | AC71: 32.2 | AD71: 38.1 | AE71: 42.4 | AF71: 49 | AG71: 59.4 | AH71: 69.9 | AI71: 80.3 | AJ71: 90.7 | AK71: 101.1
B72: High price scenario | R72: 22.2 | S72: 22 | T72: 21.7 | U72: 21.5 | V72: 21.9 | W72: 22.1 | X72: 22.4 | Y72: 22.6 | Z72: 22.8 | AA72: 23.1 | AB72: 23.6 | AC72: 32.2 | AD72: 38.1 | AE72: 42.4 | AF72: 49 | AG72: 59.4 | AH72: 69.9 | AI72: 80.3 | AJ72: 90.7 | AK72: 101.1
B74: £/t CO2e | R74: =R70/$V$70 * $V$74 -> 407.0287764 | S74: =S70/$V$70 * $V$74 -> 403.3618505 | T74: 397.8614617 | U74: =U70/$V$70 * $V$74 -> 394.1945357 | V74: =AM78 -> 401.5283876 | W74: =W70/$V$70 * $V$74 -> 405.1953135 | X74: 410.6957024 | Y74: 414.3626283 | Z74: 418.0295542 | AA74: 423.5299431 | AB74: 432.6972578 | AC74: 590.3750721 | AD74: 698.5493866 | AE74: 777.3882937 | AF74: 898.3968489 | AG74: 1089.076996 | AH74: 1281.590607 | AI74: 1472.270754 | AJ74: 1662.950902 | AK74: 1853.631049 | AM74: =0.28307 -> 0.28307 | AN74: kg CO2e/kWh | AO74: <- Defra conversion factors
B75: CO2 emissions from electricity | AM75: =U32 -> 11.36606407 | AN75: p/kWh
B76: Existing policies | R76: =IFERROR(R45/R$74, "n/a") -> 0 | S76: 0 | T76: 0 | U76: =IFERROR(U45/U$74, "n/a") -> 0 | V76: =IFERROR(V45/V$74, "n/a") -> 0 | W76: 0 | X76: 0 | Y76: 0 | Z76: 0 | AA76: 0 | AB76: 0 | AC76: 0 | AD76: 0 | AE76: 0 | AF76: 0 | AG76: 0 | AH76: 0 | AI76: 0 | AJ76: 0 | AK76: 0 | AM76: =AM75/AM74 -> 40.15283876 | AN76: p/kg CO2e
B77: Low price scenario | R77: =IFERROR(R46/R$74, "n/a") -> 0 | S77: 0 | T77: 0 | U77: =IFERROR(U46/U$74, "n/a") -> 0 | V77: 0 | W77: 0 | X77: 0 | Y77: 0 | Z77: 0 | AA77: 0 | AB77: 0 | AC77: 0 | AD77: 0 | AE77: 0 | AF77: 0 | AG77: 0 | AH77: 0 | AI77: 0 | AJ77: 0 | AK77: 0 | AM77: =AM76*10^3 -> 40152.83876 | AN77: p/t CO2e
B78: High price scenario | R78: =IFERROR(R47/R$74, "n/a") -> 0 | S78: 0 | T78: 0 | U78: =IFERROR(U47/U$74, "n/a") -> 0 | V78: 0 | W78: 0 | X78: 0 | Y78: 0 | Z78: 0 | AA78: 0 | AB78: 0 | AC78: 0 | AD78: 0 | AE78: 0 | AF78: 0 | AG78: 0 | AH78: 0 | AI78: 0 | AJ78: 0 | AK78: 0 | AM78: =AM77/100 -> 401.5283876 | AN78: £/t CO2e
B80: CO2 emissions from fuel | R80: 2016 | S80: 2017 | T80: 2018 | U80: 2019 | V80: 2020 | W80: 2021 | X80: 2022 | Y80: 2023 | Z80: 2024 | AA80: 2025 | AB80: 2026 | AC80: 2027 | AD80: 2028 | AE80: 2029 | AF80: 2030 | AG80: 2031 | AH80: 2032 | AI80: 2033 | AJ80: 2034 | AK80: 2035
B81: Fuel | R81: =IF(R$80<n_Timestamp, "n/a", n_AnnualFC*INDEX(a_CEF, MATCH(n_Fuel, a_FuelType, 0))*10^-3) -> n/a | S81: n/a | T81: n/a
B82: SAVINGS | R82: =IFERROR(SUM(R81, -R76), "n/a") -> 0 | S82: =IFERROR(SUM(S81, -S76), "n/a") -> 0 | T82: 0 | U82: =IFERROR(SUM(U81, -U76), "n/a") -> n/a | V82: n/a | W82: n/a | X82: n/a | Y82: n/a | Z82: n/a | AA82: n/a | AB82: n/a | AC82: n/a | AD82: n/a | AE82: n/a | AF82: n/a | AG82: n/a | AH82: n/a | AI82: n/a | AJ82: n/a | AK82: n/a

Sheet PriceVolatility_2 (hidden)
A1: Processing explanations in this column
A2: |
A3: | | B3: Timestamp | R3: =YEAR(NOW()) -> 2019 | T3: Fuel price | U3: =n_FuelPrice*INDEX(Lists!$L$4:$L$6, MATCH(n_FuelUnit, a_FuelUnits, 0)) -> 0 | V3: per tonne | W3: Elec. Price | X3: =IF(AND(ISNUMBER(n_ElecPrice),n_ElecPrice>0),n_ElecPrice,INDEX(#REF!,MATCH(n_Timestamp,#REF!,0))/100) -> 0.08 | Y3: per kWh
A4: V | R4: Source: BEIS UEP projections
C5: 2001 | D5: =C5+1 -> 2002 | E5: =D5+1 -> 2003 | F5: 2004 | G5: 2005 | H5: 2006 | I5: 2007 | J5: 2008 | K5: 2009 | L5: 2010 | M5: 2011 | N5: 2012 | O5: 2013 | P5: 2014 | Q5: 2015 | R5: 2016 | S5: 2017 | T5: 2018 | U5: 2019 | V5: 2020 | W5: 2021 | X5: 2022 | Y5: 2023 | Z5: 2024 | AA5: 2025 | AB5: 2026 | AC5: 2027 | AD5: 2028 | AE5: 2029 | AF5: 2030 | AG5: 2031 | AH5: 2032 | AI5: 2033 | AJ5: 2034 | AK5: 2035
A6: 1. BEIS UEP projected cost of fuels (£ per tonne) | B6: Existing policies | C6: 2.16504744 | D6: 2.030180524 | E6: 2.267445459 | F6: 2.49506618 | G6: 3.120438265 | H6: 3.681901525 | I6: 3.661115581 | J6: 5.281030224 | K6: 4.259730652 | L6: 5.124885719 | M6: 6.24829895 | N6: 6.404386427 | O6: 6.164960499 | P6: 5.50673081 | Q6: 4.136381704 | R6: 2.92547714 | S6: 3.23955089 | T6: 3.381529619 | U6: 3.487544987 | V6: 3.637553917 | W6: 3.784992656 | X6: 3.884566457 | Y6: 4.028043114 | Z6: 4.170863713 | AA6: 4.313736089 | AB6: 4.411576012 | AC6: 4.554553007 | AD6: 4.69758285 | AE6: 4.795581316 | AF6: 4.938717941 | AG6: 4.94665475 | AH6: 4.954645868 | AI6: 4.962691666 | AJ6: 4.970792518 | AK6: 4.978948801
B7: Low price scenario | C7: 2.16504744 | D7: 2.030180524 | E7: 2.267445459 | F7: 2.49506618 | G7: 3.120438265 | H7: 3.681901525 | I7: 3.661115581 | J7: 5.281030224 | K7: 4.259730652 | L7: 5.124885719 | M7: 6.24829895 | N7: 6.404386427 | O7: 6.164960499 | P7: 5.50673081 | Q7: 4.136381704 | R7: 2.564800461 | S7: 2.247690023 | T7: 2.344584167 | U7: 2.49568412 | V7: 2.600608465 | W7: 2.748047204 | X7: 2.847621005 | Y7: 2.991097662 | Z7: 3.088833677 | AA7: 3.231706053 | AB7: 3.329545975 | AC7: 3.47252297 | AD7: 3.570468228 | AE7: 3.71355128 | AF7: 3.811603319 | AG7: 3.819540128 | AH7: 3.827531246 | AI7: 3.835577044 | AJ7: 3.843677896 | AK7: 3.85183418
B8: High price scenario | C8: 2.16504744 | D8: 2.030180524 | E8: 2.267445459 | F8: 2.49506618 | G8: 3.120438265 | H8: 3.681901525 | I8: 3.661115581 | J8: 5.281030224 | K8: 4.259730652 | L8: 5.124885719 | M8: 6.24829895 | N8: 6.404386427 | O8: 6.164960499 | P8: 5.50673081 | Q8: 4.136381704 | R8: 3.556661328 | S8: 4.005988833 | T8: 4.238136732 | U8: 4.434321269 | V8: 4.629414784 | W8: 4.867022693 | X8: 5.056765664 | Y8: 5.290411491 | Z8: 5.478316675 | AA8: 5.71135822 | AB8: 5.899367313 | AC8: 6.132513478 | AD8: 6.320627905 | AE8: 6.553880126 | AF8: 6.742101335 | AG8: 6.750038145 | AH8: 6.758029262 | AI8: 6.76607506 | AJ8: 6.774175913 | AK8: 6.782332196
A10: 2. Scaled time-series to account for which year we are in. So if timestamp year is 2019, cost projections are scaled to that year. Trends are used in the UEP in effect (£/t) | B10: Existing policies | R10: =R6 -> 2.92547714 | S10: =S6 -> 3.23955089 | T10: 3.381529619 | U10: 3.487544987 | V10: 3.637553917 | W10: 3.784992656 | X10: 3.884566457 | Y10: 4.028043114 | Z10: 4.170863713 | AA10: 4.313736089 | AB10: 4.411576012 | AC10: 4.554553007 | AD10: 4.69758285 | AE10: 4.795581316 | AF10: 4.938717941 | AG10: 4.94665475 | AH10: 4.954645868 | AI10: 4.962691666 | AJ10: 4.970792518 | AK10: 4.978948801
B11: Low price scenario | R11: =IF(R$5=n_Timestamp,R$10,R7/INDEX($R7:$AK7,MATCH(n_Timestamp,$R$5:$AK$5,0))*INDEX($R$10:$AK$10,MATCH(n_Timestamp,$R$5:$AK$5,0))) -> 3.584130267 | S11: 3.140990484 | T11: 3.276393312 | U11: 3.487544987 | V11: 3.634169461 | W11: 3.840204846 | X11: 3.979352308 | Y11: 4.179850957 | Z11: 4.31643024 | AA11: 4.516084449 | AB11: 4.652808936 | AC11: 4.852609343 | AD11: 4.989481029 | AE11: 5.189429642 | AF11: 5.326450548 | AG11: 5.337541687 | AH11: 5.348708718 | AI11: 5.359952161 | AJ11: 5.371272538 | AK11: 5.382670377
B12: High price scenario | R12: =IF(R$5=n_Timestamp,R$10,R8/INDEX($R8:$AK8,MATCH(n_Timestamp,$R$5:$AK$5,0))*INDEX($R$10:$AK$10,MATCH(n_Timestamp,$R$5:$AK$5,0))) -> 2.797275081 | S12: 3.150666229 | T12: 3.333248003 | U12: 3.487544987 | V12: 3.640983894 | W12: 3.827859906 | X12: 3.977090669 | Y12: 4.160850546 | Z12: 4.30863591 | AA12: 4.491920527 | AB12: 4.639787613 | AC12: 4.823154512 | AD12: 4.971104444 | AE12: 5.154554754 | AF12: 5.302588668 | AG12: 5.308830882 | AH12: 5.315115808 | AI12: 5.32144374 | AJ12: 5.327814971 | AK12: 5.334229798
A14: 3. Scaled against listed fuel price provided by the operators on the UserManual page (£/t) | B14: Existing policies | R14: =IF(n_Timestamp=R$5,1,R10/INDEX($R10:$AK10,MATCH(n_Timestamp,$R$5:$AK$5,0)))*$U$3 -> 0 | S14: 0 | T14: 0 | U14: 0 | V14: 0 | W14: 0 | X14: 0 | Y14: 0 | Z14: 0 | AA14: 0 | AB14: 0 | AC14: 0 | AD14: 0 | AE14: 0 | AF14: 0 | AG14: 0 | AH14: 0 | AI14: 0 | AJ14: 0 | AK14: 0
B15: Low price scenario | R15: =IF(n_Timestamp=R$5,1,R11/INDEX($R11:$AK11,MATCH(n_Timestamp,$R$5:$AK$5,0)))*$U$3 -> 0 | S15: 0 | T15: 0 | U15: 0 | V15: 0 | W15: 0 | X15: 0 | Y15: 0 | Z15: 0 | AA15: 0 | AB15: 0 | AC15: 0 | AD15: 0 | AE15: 0 | AF15: 0 | AG15: 0 | AH15: 0 | AI15: 0 | AJ15: 0 | AK15: 0
B16: High price scenario | R16: =IF(n_Timestamp=R$5,1,R12/INDEX($R12:$AK12,MATCH(n_Timestamp,$R$5:$AK$5,0)))*$U$3 -> 0 | S16: 0 | T16: 0 | U16: 0 | V16: 0 | W16: 0 | X16: 0 | Y16: 0 | Z16: 0 | AA16: 0 | AB16: 0 | AC16: 0 | AD16: 0 | AE16: 0 | AF16: 0 | AG16: 0 | AH16: 0 | AI16: 0 | AJ16: 0 | AK16: 0
R18: =R5 -> 2016 | S18: =R18+1 -> 2017 | T18: 2018 | U18: 2019 | V18: 2020 | W18: 2021 | X18: 2022 | Y18: 2023 | Z18: 2024 | AA18: 2025 | AB18: 2026 | AC18: 2027 | AD18: 2028 | AE18: 2029 | AF18: 2030 | AG18: 2031 | AH18: 2032 | AI18: 2033 | AJ18: 2034 | AK18: 2035
A19: 4. Using the calculated value of fuel consumption, overall fuel cost per annum are computed. The value of fuel consumption assumes that there are 20 days per year where a vessel isn't operational, and is only operational for the hours listed in the UserManual by the operator | B19: Existing policies | R19: =n_AnnualFC*R14 -> 
B20: Low price scenario
B21: High price scenario
R23: 2016 | S23: 2017 | T23: 2018 | U23: 2019 | V23: 2020 | W23: 2021 | X23: 2022 | Y23: 2023 | Z23: 2024 | AA23: 2025 | AB23: 2026 | AC23: 2027 | AD23: 2028 | AE23: 2029 | AF23: 2030 | AG23: 2031 | AH23: 2032 | AI23: 2033 | AJ23: 2034 | AK23: 2035
A24: 5. Cumulative costs, starting from the base year (current year) | B24: Existing policies | R24: =IF(R$18<n_Timestamp,"n/a",SUM(R19, Q24)) -> n/a | S24: n/a | T24: n/a
B25: Low price scenario | R25: =IF(R$18<n_Timestamp,"n/a",SUM(R20, Q25)) -> n/a | S25: n/a | T25: n/a
B26: High price scenario | R26: =IF(R$18<n_Timestamp,"n/a",SUM(R21, Q26)) -> n/a | S26: n/a | T26: n/a
A28: 6. Insert defined payback period | B28: Payback period: | R28: =n_PaybackPeriod -> 4 | S28: yrs
A29: 7. Insert assumed maintenance costs as a % of install | B29: Maintenance % | R29: =n_Maintenance2 -> 0.02
B31: Electricity costs | R31: 2016 | S31: 2017 | T31: 2018 | U31: 2019 | V31: 2020 | W31: 2021 | X31: 2022 | Y31: 2023 | Z31: 2024 | AA31: 2025 | AB31: 2026 | AC31: 2027 | AD31: 2028 | AE31: 2029 | AF31: 2030 | AG31: 2031 | AH31: 2032 | AI31: 2033 | AJ31: 2034 | AK31: 2035
A32: 8. BEIS UEP electricity cost projections | B32: Existing policies | R32: 9.831444081 | S32: 10.23177363 | T32: 10.67839361 | U32: 11.36606407 | V32: 11.71875951 | W32: 12.0095202 | X32: 11.95833153 | Y32: 12.11726765 | Z32: 12.42848839 | AA32: 13.12158865 | AB32: 13.33996684 | AC32: 13.02659407 | AD32: 13.65294786 | AE32: 14.13205857 | AF32: 14.25493366 | AG32: 14.49500384 | AH32: 14.74626546 | AI32: 15.23898638 | AJ32: 15.46533925 | AK32: 15.83055562
B33: Low price scenario | R33: 9.831444081 | S33: 9.542628714 | T33: 10.00839967 | U33: 10.71674356 | V33: 11.05483273 | W33: 11.20002115 | X33: 11.11102313 | Y33: 11.07705326 | Z33: 11.32160973 | AA33: 11.89656932 | AB33: 11.95544844 | AC33: 11.39645804 | AD33: 11.43527968 | AE33: 11.41441923 | AF33: 11.54147901 | AG33: 11.69619153 | AH33: 11.46297347 | AI33: 11.5029685 | AJ33: 11.48721725 | AK33: 10.6721599
B34: High price scenario | R34: 9.831444081 | S34: 10.81373851 | T34: 11.62056329 | U34: 12.52488089 | V34: 13.01622392 | W34: 13.16262822 | X34: 13.09666205 | Y34: 13.21021841 | Z34: 13.33651098 | AA34: 14.01479088 | AB34: 14.05178442 | AC34: 13.62102284 | AD34: 13.27446655 | AE34: 13.31168405 | AF34: 13.79258452 | AG34: 13.85630038 | AH34: 13.12427 | AI34: 12.95562785 | AJ34: 12.91681109 | AK34: 12.06305064
A36: 9. Scaling of electricity prices to current year | B36: Existing policies | R36: =R32 -> 9.831444081 | S36: =S32 -> 10.23177363 | T36: 10.67839361 | U36: 11.36606407 | V36: 11.71875951 | W36: 12.0095202 | X36: 11.95833153 | Y36: 12.11726765 | Z36: 12.42848839 | AA36: 13.12158865 | AB36: 13.33996684 | AC36: 13.02659407 | AD36: 13.65294786 | AE36: 14.13205857 | AF36: 14.25493366 | AG36: 14.49500384 | AH36: 14.74626546 | AI36: 15.23898638 | AJ36: 15.46533925 | AK36: 15.83055562
B37: Low price scenario | R37: =IF(R$5=n_Timestamp,R$32,R33/INDEX($R33:$AK33,MATCH(n_Timestamp,$R$5:$AK$5,0))*INDEX($R$32:$AK$32,MATCH(n_Timestamp,$R$5:$AK$5,0))) -> 10.42712487 | S37: 10.12081037 | T37: 10.61480209 | U37: 11.36606407 | V37: 11.72463784 | W37: 11.87862313 | X37: 11.78423278 | Y37: 11.7482047 | Z37: 12.00757869 | AA37: 12.61737471 | AB37: 12.67982128 | AC37: 12.086962 | AD37: 12.12813582 | AE37: 12.10601145 | AF37: 12.24076971 | AG37: 12.40485615 | AH37: 12.15750756 | AI37: 12.19992587 | AJ37: 12.18322026 | AK37: 11.31877912
B38: High price scenario | R38: =IF(R$5=n_Timestamp,R$32,R34/INDEX($R34:$AK34,MATCH(n_Timestamp,$R$5:$AK$5,0))*INDEX($R$32:$AK$32,MATCH(n_Timestamp,$R$5:$AK$5,0))) -> 8.921827226 | S38: 9.813238613 | T38: 10.545415 | U38: 11.36606407 | V38: 11.81194746 | W38: 11.94480626 | X38: 11.88494336 | Y38: 11.98799335 | Z38: 12.10260118 | AA38: 12.71812582 | AB38: 12.75169668 | AC38: 12.36078966 | AD38: 12.04629718 | AE38: 12.08007127 | AF38: 12.51647826 | AG38: 12.57429905 | AH38: 11.90999699 | AI38: 11.75695781 | AJ38: 11.72173242 | AK38: 10.9469629
A40: 10. Scaled against listed electricity price provided by the operators on the UserManual page (£/kWh) | B40: Existing policies | R40: =IF(n_Timestamp=R$5,1,R36/INDEX($R36:$AK36,MATCH(n_Timestamp,$R$5:$AK$5,0)))*$X$3 -> 0.06919858289 | S40: 0.07201630095 | T40: 0.07515983403 | U40: 0.08 | V40: 0.08248244557 | W40: 0.08452896361 | X40: 0.08416867237 | Y40: 0.08528734367 | Z40: 0.0874778697 | AA40: 0.09235625332 | AB40: 0.09389330741 | AC40: 0.09168763432 | AD40: 0.09609622314 | AE40: 0.09946844207 | AF40: 0.1003332979 | AG40: 0.1020230311 | AH40: 0.103791535 | AI40: 0.1072595494 | AJ40: 0.1088527333 | AK40: 0.1114233073
B41: Low price scenario | R41: =IF(n_Timestamp=R$5,1,R37/INDEX($R37:$AK37,MATCH(n_Timestamp,$R$5:$AK$5,0)))*$X$3 -> 0.07339127994 | S41: 0.07123528645 | T41: 0.07471224532 | U41: 0.08 | V41: 0.0825238202 | W41: 0.08360764508 | X41: 0.08294327892 | Y41: 0.08268969545 | Z41: 0.08451529828 | AA41: 0.08880734531 | AB41: 0.08924687526 | AC41: 0.08507403747 | AD41: 0.08536383922 | AE41: 0.08520811693 | AF41: 0.08615661242 | AG41: 0.08731153427 | AH41: 0.08557057213 | AI41: 0.08586913322 | AJ41: 0.08575155085 | AK41: 0.07966718508
B42: High price scenario | R42: =IF(n_Timestamp=R$5,1,R38/INDEX($R38:$AK38,MATCH(n_Timestamp,$R$5:$AK$5,0)))*$X$3 -> 0.06279624802 | S42: =IF(n_Timestamp=S$5,1,S38/INDEX($R38:$AK38,MATCH(n_Timestamp,$R$5:$AK$5,0)))*$X$3 -> 0.06907044377 | T42: 0.07422386459 | U42: 0.08 | V42: 0.08313834863 | W42: 0.08407347479 | X42: 0.08365213 | Y42: 0.08437744699 | Z42: 0.08518411376 | AA42: 0.08951648168 | AB42: 0.08975277002 | AC42: 0.08700137245 | AD42: 0.08478781825 | AE42: 0.08502553708 | AF42: 0.08809718603 | AG42: 0.08850415747 | AH42: 0.08382846988 | AI42: 0.08275130418 | AJ42: 0.08250337041 | AK42: 0.07705015799
B44: Annual costs | R44: =R31 -> 2016 | S44: =R44+1 -> 2017 | T44: =S44+1 -> 2018 | U44: =T44+1 -> 2019 | V44: =U44+1 -> 2020 | W44: =V44+1 -> 2021 | X44: =W44+1 -> 2022 | Y44: =X44+1 -> 2023 | Z44: =Y44+1 -> 2024 | AA44: =Z44+1 -> 2025 | AB44: =AA44+1 -> 2026 | AC44: =AB44+1 -> 2027 | AD44: =AC44+1 -> 2028 | AE44: =AD44+1 -> 2029 | AF44: =AE44+1 -> 2030 | AG44: =AF44+1 -> 2031 | AH44: =AG44+1 -> 2032 | AI44: =AH44+1 -> 2033 | AJ44: =AI44+1 -> 2034 | AK44: =AJ44+1 -> 2035
A45: 11. Annual costs of electricity - as with fuel pricing, assumes that they are closed 20 days a year. | B45: Existing policies | R45: =(n_HrsPerDay + n_Minsperday/60)*n_Enginepower*IF(n_LoadChoice="Enter manually", n_LoadManual, 0.2)*(365.25*n_DaysperWeek/7-20)*R40 -> 0 | S45: 0 | T45: 0 | U45: 0 | V45: 0 | W45: 0 | X45: 0 | Y45: 0 | Z45: 0 | AA45: 0 | AB45: 0 | AC45: 0 | AD45: 0 | AE45: 0 | AF45: 0 | AG45: 0 | AH45: 0 | AI45: 0 | AJ45: 0 | AK45: 0
B46: Low price scenario | R46: =(n_HrsPerDay + n_Minsperday/60)*n_Enginepower*IF(n_LoadChoice="Enter manually", n_LoadManual, 0.2)*(365.25*n_DaysperWeek/7-20)*R41 -> 0 | S46: 0 | T46: 0 | U46: 0 | V46: 0 | W46: 0 | X46: 0 | Y46: 0 | Z46: 0 | AA46: 0 | AB46: 0 | AC46: 0 | AD46: 0 | AE46: 0 | AF46: 0 | AG46: 0 | AH46: 0 | AI46: 0 | AJ46: 0 | AK46: 0
B47: High price scenario | R47: =(n_HrsPerDay + n_Minsperday/60)*n_Enginepower*IF(n_LoadChoice="Enter manually", n_LoadManual, 0.2)*(365.25*n_DaysperWeek/7-20)*R42 -> 0 | S47: 0 | T47: 0 | U47: 0 | V47: 0 | W47: 0 | X47: 0 | Y47: 0 | Z47: 0 | AA47: 0 | AB47: 0 | AC47: 0 | AD47: 0 | AE47: 0 | AF47: 0 | AG47: 0 | AH47: 0 | AI47: 0 | AJ47: 0 | AK47: 0
A49: 12. Cumulative costs, starting from the base year (current year) | B49: Cumulate electricty costs | R49: 2016 | S49: 2017 | T49: 2018 | U49: 2019 | V49: 2020 | W49: 2021 | X49: 2022 | Y49: 2023 | Z49: 2024 | AA49: 2025 | AB49: 2026 | AC49: 2027 | AD49: 2028 | AE49: 2029 | AF49: 2030 | AG49: 2031 | AH49: 2032 | AI49: 2033 | AJ49: 2034 | AK49: 2035
B50: Existing policies | R50: =IF(R$18<n_Timestamp,"n/a",SUM(R45, Q50)) -> n/a | S50: =IF(S$18<n_Timestamp,"n/a",SUM(S45, R50)) -> n/a | T50: =IF(T$18<n_Timestamp,"n/a",SUM(T45, S50)) -> n/a | U50: =IF(U$18<n_Timestamp,"n/a",SUM(U45, T50)) -> 0 | V50: =IF(V$18<n_Timestamp,"n/a",SUM(V45, U50)) -> 0 | W50: =IF(W$18<n_Timestamp,"n/a",SUM(W45, V50)) -> 0 | X50: =IF(X$18<n_Timestamp,"n/a",SUM(X45, W50)) -> 0 | Y50: =IF(Y$18<n_Timestamp,"n/a",SUM(Y45, X50)) -> 0 | Z50: =IF(Z$18<n_Timestamp,"n/a",SUM(Z45, Y50)) -> 0 | AA50: =IF(AA$18<n_Timestamp,"n/a",SUM(AA45, Z50)) -> 0 | AB50: =IF(AB$18<n_Timestamp,"n/a",SUM(AB45, AA50)) -> 0 | AC50: =IF(AC$18<n_Timestamp,"n/a",SUM(AC45, AB50)) -> 0 | AD50: =IF(AD$18<n_Timestamp,"n/a",SUM(AD45, AC50)) -> 0 | AE50: =IF(AE$18<n_Timestamp,"n/a",SUM(AE45, AD50)) -> 0 | AF50: =IF(AF$18<n_Timestamp,"n/a",SUM(AF45, AE50)) -> 0 | AG50: =IF(AG$18<n_Timestamp,"n/a",SUM(AG45, AF50)) -> 0 | AH50: =IF(AH$18<n_Timestamp,"n/a",SUM(AH45, AG50)) -> 0 | AI50: =IF(AI$18<n_Timestamp,"n/a",SUM(AI45, AH50)) -> 0 | AJ50: =IF(AJ$18<n_Timestamp,"n/a",SUM(AJ45, AI50)) -> 0 | AK50: =IF(AK$18<n_Timestamp,"n/a",SUM(AK45, AJ50)) -> 0
B51: Low price scenario | R51: n/a | S51: n/a | T51: n/a | U51: 0 | V51: 0 | W51: 0 | X51: 0 | Y51: 0 | Z51: 0 | AA51: 0 | AB51: 0 | AC51: 0 | AD51: 0 | AE51: 0 | AF51: 0 | AG51: 0 | AH51: 0 | AI51: 0 | AJ51: 0 | AK51: 0
B52: High price scenario | R52: n/a | S52: n/a | T52: n/a | U52: 0 | V52: 0 | W52: 0 | X52: 0 | Y52: 0 | Z52: 0 | AA52: 0 | AB52: 0 | AC52: 0 | AD52: 0 | AE52: 0 | AF52: 0 | AG52: 0 | AH52: 0 | AI52: 0 | AJ52: 0 | AK52: 0
B54: Payback time | R54: =PriceVolatility_2!n_Timestamp+n_PaybackPeriod -> 2023 | V54: Costs to offset difference | W54: Correction for maintenance
B55: Existing policies | R55: =INDEX($R50:$AK50, MATCH(R$54, $R$49:$AK$49, 0)) -> 0 | S55: <- elec cost | T55: =INDEX($R24:$AK24, MATCH(R$54, $R$49:$AK$49, 0)) ->  | U55: <- fuel costs | V55: =T55-R55 ->  | W55: =V55/(1+$R$29*n_PaybackPeriod) ->  | Z55: =ROUND(MIN($W$55:$W$57),-3) ->  | AA55: ="£"&Z55/1000&"k" -> 
B56: Low price scenario | R56: =INDEX($R51:$AK51, MATCH(R$54, $R$49:$AK$49, 0)) -> 0 | T56: =INDEX($R25:$AK25, MATCH(R$54, $R$49:$AK$49, 0)) ->  | V56: =T56-R56 ->  | W56: =V56/(1+$R$29*n_PaybackPeriod) ->  | Z56: =ROUND(MAX($W$55:$W$57),-3) ->  | AA56: ="£"&Z56/1000&"k" -> 
B57: High price scenario | R57: =INDEX($R52:$AK52, MATCH(R$54, $R$49:$AK$49, 0)) -> 0 | T57: =INDEX($R26:$AK26, MATCH(R$54, $R$49:$AK$49, 0)) ->  | W57: =V57/(1+$R$29*n_PaybackPeriod) -> 
B59: Existing policies | R59: =SUM(R50, IF(R49<PriceVolatility_2!n_Timestamp, 0, $Z$55)) -> 0 | S59: =SUM(S50, IF(S49<PriceVolatility_2!n_Timestamp, 0, $Z$55)) -> 0 | T59: =SUM(T50, IF(T49<PriceVolatility_2!n_Timestamp, 0, $Z$55)) -> 0 | U59: =SUM(U50, IF(U49<PriceVolatility_2!n_Timestamp, 0, $Z$55)) ->  | V59: =SUM(V50, IF(V49<PriceVolatility_2!n_Timestamp, 0, $Z$55)) ->  | W59: =SUM(W50, IF(W49<PriceVolatility_2!n_Timestamp, 0, $Z$55)) ->  | X59: =SUM(X50, IF(X49<PriceVolatility_2!n_Timestamp, 0, $Z$55)) ->  | Y59: =SUM(Y50, IF(Y49<PriceVolatility_2!n_Timestamp, 0, $Z$55)) ->  | Z59: =SUM(Z50, IF(Z49<PriceVolatility_2!n_Timestamp, 0, $Z$55)) ->  | AA59: =SUM(AA50, IF(AA49<PriceVolatility_2!n_Timestamp, 0, $Z$55)) ->  | AB59: =SUM(AB50, IF(AB49<PriceVolatility_2!n_Timestamp, 0, $Z$55)) ->  | AC59: =SUM(AC50, IF(AC49<PriceVolatility_2!n_Timestamp, 0, $Z$55)) ->  | AD59: =SUM(AD50, IF(AD49<PriceVolatility_2!n_Timestamp, 0, $Z$55)) ->  | AE59: =SUM(AE50, IF(AE49<PriceVolatility_2!n_Timestamp, 0, $Z$55)) ->  | AF59: =SUM(AF50, IF(AF49<PriceVolatility_2!n_Timestamp, 0, $Z$55)) ->  | AG59: =SUM(AG50, IF(AG49<PriceVolatility_2!n_Timestamp, 0, $Z$55)) ->  | AH59: =SUM(AH50, IF(AH49<PriceVolatility_2!n_Timestamp, 0, $Z$55)) ->  | AI59: =SUM(AI50, IF(AI49<PriceVolatility_2!n_Timestamp, 0, $Z$55)) ->  | AJ59: =SUM(AJ50, IF(AJ49<PriceVolatility_2!n_Timestamp, 0, $Z$55)) ->  | AK59: =SUM(AK50, IF(AK49<PriceVolatility_2!n_Timestamp, 0, $Z$55)) -> 
B61: Carbon emissions from electricity production
B62: (£/t CO2) | R62: <- carbon price from ETS - not price of electricity but will be related
B63: Existing policies | R63: 22.2 | S63: 22 | T63: 21.7 | U63: 21.5 | V63: 21.9 | W63: 22.1 | X63: 22.4 | Y63: 22.6 | Z63: 22.8 | AA63: 23.1 | AB63: 23.6 | AC63: 32.2 | AD63: 38.1 | AE63: 42.4 | AF63: 49 | AG63: 59.4 | AH63: 69.9 | AI63: 80.3 | AJ63: 90.7 | AK63: 101.1
B64: Low price scenario | R64: 22.2 | S64: 22 | T64: 21.7 | U64: 21.5 | V64: 21.9 | W64: 22.1 | X64: 22.4 | Y64: 22.6 | Z64: 22.8 | AA64: 23.1 | AB64: 23.6 | AC64: 32.2 | AD64: 38.1 | AE64: 42.4 | AF64: 49 | AG64: 59.4 | AH64: 69.9 | AI64: 80.3 | AJ64: 90.7 | AK64: 101.1
B65: High price scenario | R65: 22.2 | S65: 22 | T65: 21.7 | U65: 21.5 | V65: 21.9 | W65: 22.1 | X65: 22.4 | Y65: 22.6 | Z65: 22.8 | AA65: 23.1 | AB65: 23.6 | AC65: 32.2 | AD65: 38.1 | AE65: 42.4 | AF65: 49 | AG65: 59.4 | AH65: 69.9 | AI65: 80.3 | AJ65: 90.7 | AK65: 101.1
B67: £/t CO2e | R67: =R63/$V$63 * $V$67 -> 407.0287764 | S67: 403.3618505 | T67: 397.8614617 | U67: =U63/$V$63 * $V$67 -> 394.1945357 | V67: =AM71 -> 401.5283876 | W67: =W63/$V$63 * $V$67 -> 405.1953135 | X67: 410.6957024 | Y67: 414.3626283 | Z67: 418.0295542 | AA67: 423.5299431 | AB67: 432.6972578 | AC67: 590.3750721 | AD67: 698.5493866 | AE67: 777.3882937 | AF67: 898.3968489 | AG67: 1089.076996 | AH67: 1281.590607 | AI67: 1472.270754 | AJ67: 1662.950902 | AK67: 1853.631049 | AM67: =0.28307 -> 0.28307 | AN67: kg CO2e/kWh | AO67: <- Defra conversion factors
B68: CO2 emissions from electricity | AM68: =PriceVolatility!AM75 -> 11.36606407 | AN68: p/kWh
B69: Existing policies | R69: =IFERROR(R45/R$67, "n/a") -> 0 | S69: =IFERROR(S45/S$67, "n/a") -> 0 | T69: 0 | U69: 0 | V69: 0 | W69: 0 | X69: 0 | Y69: 0 | Z69: 0 | AA69: 0 | AB69: 0 | AC69: 0 | AD69: 0 | AE69: 0 | AF69: 0 | AG69: 0 | AH69: 0 | AI69: 0 | AJ69: 0 | AK69: 0 | AM69: =AM68/AM67 -> 40.15283876 | AN69: p/kg CO2e
B70: Low price scenario | R70: =IFERROR(R46/R$67, "n/a") -> 0 | S70: 0 | T70: 0 | U70: 0 | V70: 0 | W70: 0 | X70: 0 | Y70: 0 | Z70: 0 | AA70: 0 | AB70: 0 | AC70: 0 | AD70: 0 | AE70: 0 | AF70: 0 | AG70: 0 | AH70: 0 | AI70: 0 | AJ70: 0 | AK70: 0 | AM70: =AM69*10^3 -> 40152.83876 | AN70: p/t CO2e
B71: High price scenario | R71: =IFERROR(R47/R$67, "n/a") -> 0 | S71: 0 | T71: 0 | U71: 0 | V71: 0 | W71: 0 | X71: 0 | Y71: 0 | Z71: 0 | AA71: 0 | AB71: 0 | AC71: 0 | AD71: 0 | AE71: 0 | AF71: 0 | AG71: 0 | AH71: 0 | AI71: 0 | AJ71: 0 | AK71: 0 | AM71: =AM70/100 -> 401.5283876 | AN71: £/t CO2e
B73: CO2 emissions from fuel | R73: 2016 | S73: 2017 | T73: 2018 | U73: 2019 | V73: 2020 | W73: 2021 | X73: 2022 | Y73: 2023 | Z73: 2024 | AA73: 2025 | AB73: 2026 | AC73: 2027 | AD73: 2028 | AE73: 2029 | AF73: 2030 | AG73: 2031 | AH73: 2032 | AI73: 2033 | AJ73: 2034 | AK73: 2035
B74: Fuel | R74: =IF(R$73<n_Timestamp, "n/a", n_AnnualFC*INDEX(a_CEF, MATCH(n_Fuel, a_FuelType, 0))*10^-3) -> n/a | S74: n/a | T74: n/a
B75: SAVINGS | R75: =IFERROR(SUM(R74, -R69), "n/a") -> 0 | S75: =IFERROR(SUM(S74, -S69), "n/a") -> 0 | T75: 0 | U75: n/a | V75: n/a | W75: n/a | X75: n/a | Y75: n/a | Z75: n/a | AA75: n/a | AB75: n/a | AC75: n/a | AD75: n/a | AE75: n/a | AF75: n/a | AG75: n/a | AH75: n/a | AI75: n/a | AJ75: n/a | AK75: n/a

Sheet GraphPrep (hidden)
B1: =Results!$K$8 -> Existing policies | C1: =Results!$K$9 -> Existing policies
M2: Electricity price scenario | N2: (All)
B3: Fuel price | C3: Electricity price scenario | D3: Year | E3: Fuel costs | F3: Shore-side costs | G3: Colouring1 | H3: Colouring2 | I3: Colouring3 | J3: COLOURINGACTUAL | K3: COLOURINGACTUAL
B4: Existing policies | C4: =$C$1 -> Existing policies | D4: =n_Timestamp -> 2019 | E4: =VLOOKUP(GraphPrep!$B4, PriceVolatility!$B$23:$AK$26, MATCH(GraphPrep!$D4, PriceVolatility!$B$23:$AK$23, 0), 0) ->  | F4: =VLOOKUP($C4, PriceVolatility!$B$54:$AK$57, MATCH(GraphPrep!$D4, PriceVolatility!$B$54:$AK$54, 0), 0) -> 135000 | G4: =MIN(E4,F4) ->  | H4: =IF(E4>F4, E4, 0) ->  | I4: =IF(H4=0, F4, 0) ->  | J4: =IF(AND(H4=0, H5>0), I4, H4) ->  | K4: =IF(AND(I4=0, I3>0), H4, I4) ->  | M4: Row Labels | N4: Sum of Fuel costs | O4: Sum of Shore-side costs | P4: Sum of Colouring1
B5: Existing policies | C5: Existing policies | D5: =D4+1 -> 2020 | E5: =VLOOKUP(GraphPrep!$B5, PriceVolatility!$B$23:$AK$26, MATCH(GraphPrep!$D5, PriceVolatility!$B$23:$AK$23, 0), 0) ->  | F5: =VLOOKUP($C5, PriceVolatility!$B$54:$AK$57, MATCH(GraphPrep!$D5, PriceVolatility!$B$54:$AK$54, 0), 0) -> 145000 | G5: =MIN(E5,F5) ->  | H5: =IF(E5>F5, E5, 0) ->  | I5: =IF(H5=0, F5, 0) ->  | K5: =IF(AND(I5=0, I4>0), H5, I5) ->  | M5: 2019 | N5: 8577.834375 | O5: 139103 | P5: 8577.834375
B6: Existing policies | C6: Existing policies | D6: =D5+1 -> 2021 | E6: =VLOOKUP(GraphPrep!$B6, PriceVolatility!$B$23:$AK$26, MATCH(GraphPrep!$D6, PriceVolatility!$B$23:$AK$23, 0), 0) ->  | F6: =VLOOKUP($C6, PriceVolatility!$B$54:$AK$57, MATCH(GraphPrep!$D6, PriceVolatility!$B$54:$AK$54, 0), 0) -> 155000 | M6: 2020 | N6: 17524.62507 | O6: 153333.3184 | P6: 17524.62507
B7: Existing policies | C7: Existing policies | D7: 2022 | E7: =VLOOKUP(GraphPrep!$B7, PriceVolatility!$B$23:$AK$26, MATCH(GraphPrep!$D7, PriceVolatility!$B$23:$AK$23, 0), 0) ->  | F7: =VLOOKUP($C7, PriceVolatility!$B$54:$AK$57, MATCH(GraphPrep!$D7, PriceVolatility!$B$54:$AK$54, 0), 0) -> 165000 | M7: 2021 | N7: 26834.05053 | O7: 167668.5976 | P7: 26834.05053
B8: Existing policies | C8: Existing policies | D8: 2023 | E8: =VLOOKUP(GraphPrep!$B8, PriceVolatility!$B$23:$AK$26, MATCH(GraphPrep!$D8, PriceVolatility!$B$23:$AK$23, 0), 0) ->  | F8: =VLOOKUP($C8, PriceVolatility!$B$54:$AK$57, MATCH(GraphPrep!$D8, PriceVolatility!$B$54:$AK$54, 0), 0) -> 175000 | M8: 2022 | N8: 36388.38397 | O8: 181985.3984 | P8: 36388.38397
B9: Existing policies | C9: Existing policies | D9: 2024 | E9: =VLOOKUP(GraphPrep!$B9, PriceVolatility!$B$23:$AK$26, MATCH(GraphPrep!$D9, PriceVolatility!$B$23:$AK$23, 0), 0) ->  | F9: =VLOOKUP($C9, PriceVolatility!$B$54:$AK$57, MATCH(GraphPrep!$D9, PriceVolatility!$B$54:$AK$54, 0), 0) -> 185000 | J9: =IF(AND(H9=0, H10>0), I9, H9) ->  | M9: 2023 | N9: 46295.60719 | O9: 196359.5731 | P9: 46295.60719
B10: Existing policies | C10: Existing policies | D10: 2025 | E10: =VLOOKUP(GraphPrep!$B10, PriceVolatility!$B$23:$AK$26, MATCH(GraphPrep!$D10, PriceVolatility!$B$23:$AK$23, 0), 0) ->  | F10: =VLOOKUP($C10, PriceVolatility!$B$54:$AK$57, MATCH(GraphPrep!$D10, PriceVolatility!$B$54:$AK$54, 0), 0) -> 195000 | J10: =IF(AND(H10=0, H11>0), I10, H10) ->  | M10: 2024 | N10: 56554.10659 | O10: 210846.0943 | P10: 56554.10659
B11: Existing policies | C11: Existing policies | D11: 2026 | E11: =VLOOKUP(GraphPrep!$B11, PriceVolatility!$B$23:$AK$26, MATCH(GraphPrep!$D11, PriceVolatility!$B$23:$AK$23, 0), 0) ->  | F11: =VLOOKUP($C11, PriceVolatility!$B$54:$AK$57, MATCH(GraphPrep!$D11, PriceVolatility!$B$54:$AK$54, 0), 0) -> 205000 | M11: 2025 | N11: 67164.0095 | O11: 225582.8157 | P11: 67164.0095
B12: Existing policies | C12: Existing policies | D12: 2027 | E12: =VLOOKUP(GraphPrep!$B12, PriceVolatility!$B$23:$AK$26, MATCH(GraphPrep!$D12, PriceVolatility!$B$23:$AK$23, 0), 0) ->  | F12: =VLOOKUP($C12, PriceVolatility!$B$54:$AK$57, MATCH(GraphPrep!$D12, PriceVolatility!$B$54:$AK$54, 0), 0) -> 215000 | M12: 2026 | N12: 78014.5558 | O12: 240398.3687 | P12: 78014.5558
B13: Existing policies | C13: Existing policies | D13: 2028 | E13: =VLOOKUP(GraphPrep!$B13, PriceVolatility!$B$23:$AK$26, MATCH(GraphPrep!$D13, PriceVolatility!$B$23:$AK$23, 0), 0) ->  | F13: =VLOOKUP($C13, PriceVolatility!$B$54:$AK$57, MATCH(GraphPrep!$D13, PriceVolatility!$B$54:$AK$54, 0), 0) -> 225000 | M13: 2027 | N13: 89216.76294 | O13: 255100.7982 | P13: 89216.76294
B14: Existing policies | C14: Existing policies | D14: 2029 | E14: =VLOOKUP(GraphPrep!$B14, PriceVolatility!$B$23:$AK$26, MATCH(GraphPrep!$D14, PriceVolatility!$B$23:$AK$23, 0), 0) ->  | F14: =VLOOKUP($C14, PriceVolatility!$B$54:$AK$57, MATCH(GraphPrep!$D14, PriceVolatility!$B$54:$AK$54, 0), 0) -> 235000 | M14: 2028 | N14: 100770.7609 | O14: 270029.3332 | P14: 100770.7609
B15: Existing policies | C15: Existing policies | D15: 2030 | E15: =VLOOKUP(GraphPrep!$B15, PriceVolatility!$B$23:$AK$26, MATCH(GraphPrep!$D15, PriceVolatility!$B$23:$AK$23, 0), 0) ->  | F15: =VLOOKUP($C15, PriceVolatility!$B$54:$AK$57, MATCH(GraphPrep!$D15, PriceVolatility!$B$54:$AK$54, 0), 0) -> 245000 | M15: 2029 | N15: 112565.7922 | O15: 285130.821 | P15: 112565.7922
B16: Existing policies | C16: Existing policies | D16: 2031 | E16: =VLOOKUP(GraphPrep!$B16, PriceVolatility!$B$23:$AK$26, MATCH(GraphPrep!$D16, PriceVolatility!$B$23:$AK$23, 0), 0) ->  | F16: =VLOOKUP($C16, PriceVolatility!$B$54:$AK$57, MATCH(GraphPrep!$D16, PriceVolatility!$B$54:$AK$54, 0), 0) -> 255000 | M16: 2030 | N16: 124712.8769 | O16: 300276.665 | P16: 124712.8769
B17: Existing policies | C17: Existing policies | D17: 2032 | E17: =VLOOKUP(GraphPrep!$B17, PriceVolatility!$B$23:$AK$26, MATCH(GraphPrep!$D17, PriceVolatility!$B$23:$AK$23, 0), 0) ->  | F17: =VLOOKUP($C17, PriceVolatility!$B$54:$AK$57, MATCH(GraphPrep!$D17, PriceVolatility!$B$54:$AK$54, 0), 0) -> 265000 | M17: 2031 | N17: 136879.4828 | O17: 315509.1712 | P17: 136879.4828
B18: Existing policies | C18: Existing policies | D18: 2033 | E18: =VLOOKUP(GraphPrep!$B18, PriceVolatility!$B$23:$AK$26, MATCH(GraphPrep!$D18, PriceVolatility!$B$23:$AK$23, 0), 0) ->  | F18: =VLOOKUP($C18, PriceVolatility!$B$54:$AK$57, MATCH(GraphPrep!$D18, PriceVolatility!$B$54:$AK$54, 0), 0) -> 275000 | M18: 2032 | N18: 149065.7432 | O18: 330832.3795 | P18: 149065.7432
B19: Existing policies | C19: Existing policies | D19: 2034 | E19: =VLOOKUP(GraphPrep!$B19, PriceVolatility!$B$23:$AK$26, MATCH(GraphPrep!$D19, PriceVolatility!$B$23:$AK$23, 0), 0) ->  | F19: =VLOOKUP($C19, PriceVolatility!$B$54:$AK$57, MATCH(GraphPrep!$D19, PriceVolatility!$B$54:$AK$54, 0), 0) -> 285000 | M19: 2033 | N19: 161271.7929 | O19: 346333.4537 | P19: 161271.7929
B20: Existing policies | C20: Existing policies | D20: 2035 | E20: =VLOOKUP(GraphPrep!$B20, PriceVolatility!$B$23:$AK$26, MATCH(GraphPrep!$D20, PriceVolatility!$B$23:$AK$23, 0), 0) ->  | F20: =VLOOKUP($C20, PriceVolatility!$B$54:$AK$57, MATCH(GraphPrep!$D20, PriceVolatility!$B$54:$AK$54, 0), 0) -> 295000 | M20: 2034 | N20: 173497.767 | O20: 361916.2382 | P20: 173497.767
M21: 2035 | N21: 185743.8021 | O21: 377630.8611 | P21: 185743.8021
M22: Grand Total | N22: 1571077.954 | O22: 4358036.887 | P22: 1571077.954
B122: High price scenario | C122: =$C$1 -> Existing policies | D122: =D113+1 -> 1 | E122: =VLOOKUP(GraphPrep!$B122, PriceVolatility!$B$23:$AK$26, MATCH(GraphPrep!$D122, PriceVolatility!$B$23:$AK$23, 0), 0) ->  | F122: =VLOOKUP($C122, PriceVolatility!$B$54:$AK$57, MATCH(GraphPrep!$D122, PriceVolatility!$B$54:$AK$54, 0), 0) ->  | G122: =MIN(E122,F122) ->  | H122: =IF(E122>F122, E122, 0) ->  | I122: =IF(H122=0, F122, 0) -> 

Sheet GraphPrep_2 (hidden)
B1: =Results_2!$K$8 -> Existing policies | C1: =Results_2!$K$9 -> Existing policies | M1: Fuel price | N1: (All)
M2: Electricity price scenario | N2: (All)
B3: Fuel price | C3: Electricity price scenario | D3: Year | E3: Fuel costs | F3: Shore-side costs | G3: Colouring1 | H3: Colouring2 | I3: Colouring3 | J3: COLOURINGACTUAL | K3: COLOURINGACTUAL
B4: Existing policies | C4: =$C$1 -> Existing policies | D4: =n_Timestamp -> 2019 | E4: =VLOOKUP(GraphPrep_2!$B4, PriceVolatility_2!$B$23:$AK$26, MATCH(GraphPrep_2!$D4, PriceVolatility_2!$B$23:$AK$23, 0), 0) ->  | F4: =INDEX(PriceVolatility_2!$W$55:$W$57,MATCH(GraphPrep_2!C4,PriceVolatility_2!$B$55:$B$57,0))*(1+PriceVolatility_2!$R$29 * [0]!n_PaybackPeriod)+VLOOKUP(GraphPrep_2!$C4, PriceVolatility_2!$B$49:$AK$52, MATCH(GraphPrep_2!$D4, PriceVolatility_2!$B$44:$AK$44, 0), FALSE) ->  | G4: =MIN(E4,F4) ->  | H4: =IF(H5>0, G4, IF(E4>F4, E4, 0)) ->  | I4: =IF(H4=0, F4, 0) ->  | J4: =IF(AND(H4=0, H5>0), I4, H4) ->  | K4: =IF(AND(I4=0, I3>0), H4, I4) ->  | M4: Row Labels | N4: Sum of Fuel costs | O4: Sum of Shore-side costs | P4: Sum of Colouring1
B5: Existing policies | C5: Existing policies | D5: =D4+1 -> 2020 | E5: =VLOOKUP(GraphPrep_2!$B5, PriceVolatility_2!$B$23:$AK$26, MATCH(GraphPrep_2!$D5, PriceVolatility_2!$B$23:$AK$23, 0), 0) ->  | F5: =INDEX(PriceVolatility_2!$W$55:$W$57,MATCH(GraphPrep_2!C5,PriceVolatility_2!$B$55:$B$57,0))*(1+PriceVolatility_2!$R$29 * [0]!n_PaybackPeriod)+VLOOKUP(GraphPrep_2!$C5, PriceVolatility_2!$B$49:$AK$52, MATCH(GraphPrep_2!$D5, PriceVolatility_2!$B$44:$AK$44, 0), FALSE) ->  | G5: =MIN(E5,F5) ->  | H5: =IF(H6>0, G5, IF(E5>F5, E5, 0)) ->  | I5: =IF(H5=0, F5, 0) ->  | K5: =IF(AND(I5=0, I4>0), H5, I5) ->  | M5: 2019 | N5: 60294.86719 | O5: 312245.1293 | P5: 60294.86719
B6: Existing policies | C6: Existing policies | D6: =D5+1 -> 2021 | E6: =VLOOKUP(GraphPrep_2!$B6, PriceVolatility_2!$B$23:$AK$26, MATCH(GraphPrep_2!$D6, PriceVolatility_2!$B$23:$AK$23, 0), 0) ->  | F6: =INDEX(PriceVolatility_2!$W$55:$W$57,MATCH(GraphPrep_2!C6,PriceVolatility_2!$B$55:$B$57,0))*(1+PriceVolatility_2!$R$29 * [0]!n_PaybackPeriod)+VLOOKUP(GraphPrep_2!$C6, PriceVolatility_2!$B$49:$AK$52, MATCH(GraphPrep_2!$D6, PriceVolatility_2!$B$44:$AK$44, 0), FALSE) ->  | H6: =IF(H7>0, G6, IF(E6>F6, E6, 0)) ->  | M6: 2020 | N6: 123183.1829 | O6: 315474.5241 | P6: 123183.1829
B7: Existing policies | C7: Existing policies | D7: 2022 | E7: =VLOOKUP(GraphPrep_2!$B7, PriceVolatility_2!$B$23:$AK$26, MATCH(GraphPrep_2!$D7, PriceVolatility_2!$B$23:$AK$23, 0), 0) ->  | F7: =INDEX(PriceVolatility_2!$W$55:$W$57,MATCH(GraphPrep_2!C7,PriceVolatility_2!$B$55:$B$57,0))*(1+PriceVolatility_2!$R$29 * [0]!n_PaybackPeriod)+VLOOKUP(GraphPrep_2!$C7, PriceVolatility_2!$B$49:$AK$52, MATCH(GraphPrep_2!$D7, PriceVolatility_2!$B$44:$AK$44, 0), FALSE) ->  | H7: =IF(H8>0, G7, IF(E7>F7, E7, 0)) ->  | M7: 2021 | N7: 188620.5121 | O7: 318784.0453 | P7: 188620.5121
B8: Existing policies | C8: Existing policies | D8: 2023 | E8: =VLOOKUP(GraphPrep_2!$B8, PriceVolatility_2!$B$23:$AK$26, MATCH(GraphPrep_2!$D8, PriceVolatility_2!$B$23:$AK$23, 0), 0) ->  | F8: =INDEX(PriceVolatility_2!$W$55:$W$57,MATCH(GraphPrep_2!C8,PriceVolatility_2!$B$55:$B$57,0))*(1+PriceVolatility_2!$R$29 * [0]!n_PaybackPeriod)+VLOOKUP(GraphPrep_2!$C8, PriceVolatility_2!$B$49:$AK$52, MATCH(GraphPrep_2!$D8, PriceVolatility_2!$B$44:$AK$44, 0), FALSE) ->  | H8: =IF(H9>0, G8, IF(E8>F8, E8, 0)) ->  | M8: 2022 | N8: 255779.3358 | O8: 322079.4602 | P8: 255779.3358
B9: Existing policies | C9: Existing policies | D9: 2024 | E9: =VLOOKUP(GraphPrep_2!$B9, PriceVolatility_2!$B$23:$AK$26, MATCH(GraphPrep_2!$D9, PriceVolatility_2!$B$23:$AK$23, 0), 0) ->  | F9: =INDEX(PriceVolatility_2!$W$55:$W$57,MATCH(GraphPrep_2!C9,PriceVolatility_2!$B$55:$B$57,0))*(1+PriceVolatility_2!$R$29 * [0]!n_PaybackPeriod)+VLOOKUP(GraphPrep_2!$C9, PriceVolatility_2!$B$49:$AK$52, MATCH(GraphPrep_2!$D9, PriceVolatility_2!$B$44:$AK$44, 0), FALSE) ->  | H9: =IF(E9>F9, E9, 0) ->  | J9: =IF(AND(H9=0, H10>0), I9, H9) ->  | M9: 2023 | N9: 325418.6739 | O9: 325418.6739 | P9: 325418.6739
B10: Existing policies | C10: Existing policies | D10: 2025 | E10: =VLOOKUP(GraphPrep_2!$B10, PriceVolatility_2!$B$23:$AK$26, MATCH(GraphPrep_2!$D10, PriceVolatility_2!$B$23:$AK$23, 0), 0) ->  | F10: =INDEX(PriceVolatility_2!$W$55:$W$57,MATCH(GraphPrep_2!C10,PriceVolatility_2!$B$55:$B$57,0))*(1+PriceVolatility_2!$R$29 * [0]!n_PaybackPeriod)+VLOOKUP(GraphPrep_2!$C10, PriceVolatility_2!$B$49:$AK$52, MATCH(GraphPrep_2!$D10, PriceVolatility_2!$B$44:$AK$44, 0), FALSE) ->  | H10: =IF(E10>F10, E10, 0) ->  | J10: =IF(AND(H10=0, H11>0), I10, H10) ->  | M10: 2024 | N10: 397527.1842 | O10: 328843.6522 | P10: 328843.6522
B11: Existing policies | C11: Existing policies | D11: 2026 | E11: =VLOOKUP(GraphPrep_2!$B11, PriceVolatility_2!$B$23:$AK$26, MATCH(GraphPrep_2!$D11, PriceVolatility_2!$B$23:$AK$23, 0), 0) ->  | F11: =INDEX(PriceVolatility_2!$W$55:$W$57,MATCH(GraphPrep_2!C11,PriceVolatility_2!$B$55:$B$57,0))*(1+PriceVolatility_2!$R$29 * [0]!n_PaybackPeriod)+VLOOKUP(GraphPrep_2!$C11, PriceVolatility_2!$B$49:$AK$52, MATCH(GraphPrep_2!$D11, PriceVolatility_2!$B$44:$AK$44, 0), FALSE) ->  | M11: 2025 | N11: 472105.7618 | O11: 332459.6314 | P11: 332459.6314
B12: Existing policies | C12: Existing policies | D12: 2027 | E12: =VLOOKUP(GraphPrep_2!$B12, PriceVolatility_2!$B$23:$AK$26, MATCH(GraphPrep_2!$D12, PriceVolatility_2!$B$23:$AK$23, 0), 0) ->  | F12: =INDEX(PriceVolatility_2!$W$55:$W$57,MATCH(GraphPrep_2!C12,PriceVolatility_2!$B$55:$B$57,0))*(1+PriceVolatility_2!$R$29 * [0]!n_PaybackPeriod)+VLOOKUP(GraphPrep_2!$C12, PriceVolatility_2!$B$49:$AK$52, MATCH(GraphPrep_2!$D12, PriceVolatility_2!$B$44:$AK$44, 0), FALSE) ->  | M12: 2026 | N12: 548375.8575 | O12: 336135.7902 | P12: 336135.7902
B13: Existing policies | C13: Existing policies | D13: 2028 | E13: =VLOOKUP(GraphPrep_2!$B13, PriceVolatility_2!$B$23:$AK$26, MATCH(GraphPrep_2!$D13, PriceVolatility_2!$B$23:$AK$23, 0), 0) ->  | F13: =INDEX(PriceVolatility_2!$W$55:$W$57,MATCH(GraphPrep_2!C13,PriceVolatility_2!$B$55:$B$57,0))*(1+PriceVolatility_2!$R$29 * [0]!n_PaybackPeriod)+VLOOKUP(GraphPrep_2!$C13, PriceVolatility_2!$B$49:$AK$52, MATCH(GraphPrep_2!$D13, PriceVolatility_2!$B$44:$AK$44, 0), FALSE) ->  | M13: 2027 | N13: 627117.8292 | O13: 339725.5913 | P13: 339725.5913
B14: Existing policies | C14: Existing policies | D14: 2029 | E14: =VLOOKUP(GraphPrep_2!$B14, PriceVolatility_2!$B$23:$AK$26, MATCH(GraphPrep_2!$D14, PriceVolatility_2!$B$23:$AK$23, 0), 0) ->  | F14: =INDEX(PriceVolatility_2!$W$55:$W$57,MATCH(GraphPrep_2!C14,PriceVolatility_2!$B$55:$B$57,0))*(1+PriceVolatility_2!$R$29 * [0]!n_PaybackPeriod)+VLOOKUP(GraphPrep_2!$C14, PriceVolatility_2!$B$49:$AK$52, MATCH(GraphPrep_2!$D14, PriceVolatility_2!$B$44:$AK$44, 0), FALSE) ->  | M14: 2028 | N14: 708332.5906 | O14: 343487.9997 | P14: 343487.9997
B15: Existing policies | C15: Existing policies | D15: 2030 | E15: =VLOOKUP(GraphPrep_2!$B15, PriceVolatility_2!$B$23:$AK$26, MATCH(GraphPrep_2!$D15, PriceVolatility_2!$B$23:$AK$23, 0), 0) ->  | F15: =INDEX(PriceVolatility_2!$W$55:$W$57,MATCH(GraphPrep_2!C15,PriceVolatility_2!$B$55:$B$57,0))*(1+PriceVolatility_2!$R$29 * [0]!n_PaybackPeriod)+VLOOKUP(GraphPrep_2!$C15, PriceVolatility_2!$B$49:$AK$52, MATCH(GraphPrep_2!$D15, PriceVolatility_2!$B$44:$AK$44, 0), FALSE) ->  | M15: 2029 | N15: 791241.611 | O15: 347382.439 | P15: 347382.439
B16: Existing policies | C16: Existing policies | D16: 2031 | E16: =VLOOKUP(GraphPrep_2!$B16, PriceVolatility_2!$B$23:$AK$26, MATCH(GraphPrep_2!$D16, PriceVolatility_2!$B$23:$AK$23, 0), 0) ->  | F16: =INDEX(PriceVolatility_2!$W$55:$W$57,MATCH(GraphPrep_2!C16,PriceVolatility_2!$B$55:$B$57,0))*(1+PriceVolatility_2!$R$29 * [0]!n_PaybackPeriod)+VLOOKUP(GraphPrep_2!$C16, PriceVolatility_2!$B$49:$AK$52, MATCH(GraphPrep_2!$D16, PriceVolatility_2!$B$44:$AK$44, 0), FALSE) ->  | M16: 2030 | N16: 876625.2672 | O16: 351310.7396 | P16: 351310.7396
B17: Existing policies | C17: Existing policies | D17: 2032 | E17: =VLOOKUP(GraphPrep_2!$B17, PriceVolatility_2!$B$23:$AK$26, MATCH(GraphPrep_2!$D17, PriceVolatility_2!$B$23:$AK$23, 0), 0) ->  | F17: =INDEX(PriceVolatility_2!$W$55:$W$57,MATCH(GraphPrep_2!C17,PriceVolatility_2!$B$55:$B$57,0))*(1+PriceVolatility_2!$R$29 * [0]!n_PaybackPeriod)+VLOOKUP(GraphPrep_2!$C17, PriceVolatility_2!$B$49:$AK$52, MATCH(GraphPrep_2!$D17, PriceVolatility_2!$B$44:$AK$44, 0), FALSE) ->  | M17: 2031 | N17: 962146.14 | O17: 355305.1974 | P17: 355305.1974
B18: Existing policies | C18: Existing policies | D18: 2033 | E18: =VLOOKUP(GraphPrep_2!$B18, PriceVolatility_2!$B$23:$AK$26, MATCH(GraphPrep_2!$D18, PriceVolatility_2!$B$23:$AK$23, 0), 0) ->  | F18: =INDEX(PriceVolatility_2!$W$55:$W$57,MATCH(GraphPrep_2!C18,PriceVolatility_2!$B$55:$B$57,0))*(1+PriceVolatility_2!$R$29 * [0]!n_PaybackPeriod)+VLOOKUP(GraphPrep_2!$C18, PriceVolatility_2!$B$49:$AK$52, MATCH(GraphPrep_2!$D18, PriceVolatility_2!$B$44:$AK$44, 0), FALSE) ->  | M18: 2032 | N18: 1047805.168 | O18: 359368.8967 | P18: 359368.8967
B19: Existing policies | C19: Existing policies | D19: 2034 | E19: =VLOOKUP(GraphPrep_2!$B19, PriceVolatility_2!$B$23:$AK$26, MATCH(GraphPrep_2!$D19, PriceVolatility_2!$B$23:$AK$23, 0), 0) ->  | F19: =INDEX(PriceVolatility_2!$W$55:$W$57,MATCH(GraphPrep_2!C19,PriceVolatility_2!$B$55:$B$57,0))*(1+PriceVolatility_2!$R$29 * [0]!n_PaybackPeriod)+VLOOKUP(GraphPrep_2!$C19, PriceVolatility_2!$B$49:$AK$52, MATCH(GraphPrep_2!$D19, PriceVolatility_2!$B$44:$AK$44, 0), FALSE) ->  | M19: 2033 | N19: 1133603.297 | O19: 363568.3774 | P19: 363568.3774
B20: Existing policies | C20: Existing policies | D20: 2035 | E20: =VLOOKUP(GraphPrep_2!$B20, PriceVolatility_2!$B$23:$AK$26, MATCH(GraphPrep_2!$D20, PriceVolatility_2!$B$23:$AK$23, 0), 0) ->  | F20: =INDEX(PriceVolatility_2!$W$55:$W$57,MATCH(GraphPrep_2!C20,PriceVolatility_2!$B$55:$B$57,0))*(1+PriceVolatility_2!$R$29 * [0]!n_PaybackPeriod)+VLOOKUP(GraphPrep_2!$C20, PriceVolatility_2!$B$49:$AK$52, MATCH(GraphPrep_2!$D20, PriceVolatility_2!$B$44:$AK$44, 0), FALSE) ->  | M20: 2034 | N20: 1219541.479 | O20: 367830.2352 | P20: 367830.2352
M21: 2035 | N21: 1305620.672 | O21: 372192.7375 | P21: 372192.7375
M22: Grand Total | N22: 11043339.43 | O22: 5791613.12 | P22: 5150907.859

Sheet Lists (hidden)
I2: a_SFC
B3: a_FuelType | C3: a_FuelDensity | D3: a_CEF | E3: a_SO2EF | F3: a_Choice | G3: a_EngineType | H3: Marine diesel | I3: Marine gas oil | J3: Low-sulphur heavy fuel oil | K3: a_FuelUnits | L3: a_Multiplier | M3: a_PriceScenario
B4: <please select> | F4: <please select> | G4: <please select> | K4: kg | L4: 1000 | M4: <please select>
B5: Marine diesel | C5: 1171 | D5: =864*44/12 -> 3168 | E5: 0.015 | F5: Use model defaults | G5: Gas Turbine | H5: 319 | I5: 319 | J5: 336 | K5: tonne | L5: 1 | M5: Existing policies
B6: Marine gas oil | C6: 1171 | D6: =864*44/12 -> 3168 | E6: 0.016 | F6: Enter manually | G6: High-speed | H6: 223 | I6: 223 | J6: 234 | K6: litre | L6: =INDEX(a_FuelDensity, MATCH(n_Fuel, a_FuelType, 0)) -> 0 | M6: Low price scenario
B7: Low-sulphur heavy fuel oil | C7: 1012 | D7: =849*44/12 -> 3113 | E7: 27 | G7: Medium-speed | H7: 223 | I7: 223 | J7: 234 | M7: High price scenario
G8: Slow-speed | H8: 204 | I8: 204 | J8: 215
G9: Steam turbine | H9: 319 | I9: 319 | J9: 336
B13: EmissionFactors
B14: Lookup | E14: NOx (kg/tonne) | F14: PM10 (kg/tonne) | G14: PM2.5 (kg/tonne)
B15: =C15&"_"&D15 -> Gas Turbine_Marine diesel | C15: =G5 -> Gas Turbine | D15: Marine diesel | E15: 18.3 | F15: 0 | G15: 0
B16: =C16&"_"&D16 -> Gas Turbine_Marine gas oil | C16: =C15 -> Gas Turbine | D16: Marine gas oil | E16: =E15 -> 18.3 | F16: 0 | G16: 0
B17: Gas Turbine_Low-sulphur heavy fuel oil | C17: =C16 -> Gas Turbine | D17: Low-sulphur heavy fuel oil | E17: 18.6 | F17: 0.3 | G17: 0.3
B18: High-speed_Marine diesel | C18: =G6 -> High-speed | D18: Marine diesel | E18: 55.1 | F18: 1.5 | G18: 1.3
B19: High-speed_Marine gas oil | C19: =C18 -> High-speed | D19: Marine gas oil | E19: 55.1 | F19: 1.5 | G19: 1.3
B20: High-speed_Low-sulphur heavy fuel oil | C20: =C19 -> High-speed | D20: Low-sulphur heavy fuel oil | E20: 55.6 | F20: 3.8 | G20: 3.4
B21: Medium-speed_Marine diesel | C21: =G7 -> Medium-speed | D21: Marine diesel | E21: 60.6 | F21: 1.5 | G21: 1.3
B22: Medium-speed_Marine gas oil | C22: =C21 -> Medium-speed | D22: Marine gas oil | E22: 60.6 | F22: 1.5 | G22: 1.3
B23: Medium-speed_Low-sulphur heavy fuel oil | C23: =C22 -> Medium-speed | D23: Low-sulphur heavy fuel oil | E23: 61.3 | F23: 3.8 | G23: 3.4
B24: Slow-speed_Marine diesel | C24: =G8 -> Slow-speed | D24: Marine diesel | E24: 86.5 | F24: 1.6 | G24: 1.5
B25: Slow-speed_Marine gas oil | C25: =C24 -> Slow-speed | D25: Marine gas oil | E25: 86.5 | F25: 1.6 | G25: 1.5
B26: Slow-speed_Low-sulphur heavy fuel oil | C26: =C25 -> Slow-speed | D26: Low-sulphur heavy fuel oil | E26: 86.5 | F26: 8.7 | G26: 7.8
B27: Steam turbine_Marine diesel | C27: =G9 -> Steam turbine | D27: Marine diesel | E27: 6.4 | F27: 1 | G27: 0.9
B28: Steam turbine_Marine gas oil | C28: =C27 -> Steam turbine | D28: Marine gas oil | E28: 6.4 | F28: 1 | G28: 0.9
B29: Steam turbine_Low-sulphur heavy fuel oil | C29: =C28 -> Steam turbine | D29: Low-sulphur heavy fuel oil | E29: 6.4 | F29: 2.6 | G29: 2.4
